Workbook

Sheet 説明
A2: １． | B2: シート「基本情報登録」で事業所の基本情報を入力してください。
A3: ２． | B3: シート「入力」で、入力欄を備考を参考に入力してください。
B4: 下に進めば５人まで入力できます。
B5: １人目のところには記入例をのせているので、クリアして入力するか、上書きしてください
A6: ３． | B6: 入力欄は漢字入力等は自動でオン・オフします。
A7: ４． | B7: 数値のみを入力する欄は日本語入力がオフになっています。
C8: 欄は必須項目です。
C9: 欄は該当する場合入力して下さい。
A10: ５． | B10: 入力が終わったらシート「入力」の［印刷］ボタンを押してください。
B11: シート「健保正」・「健保副」・「年金正」の3枚が印刷されます。

Sheet 基本情報登録
B2: 提出年月日 | C2: =TODAY() -> 2021-04-22 | E2: TODAY関数が入力されています。提出日を変更する場合のみ入力してください。
B3: 年金整理記号 | C3: 南 | E3: 年金記号の「南」、「北」、「豊中」を入力してください。
C4: ＷＥＤ | E4: 年金記号の「ＷＥＤ」、「ＳＦＨ」を入力してください
B5: 年金納入告知書番号 | C5: 00687 | E5: 「00687」のように必ず５ケタの数字を入力してください。
B6: 健康保険記号 | C6: 532 | E6: 健康保険の記号を入力してください。
B7: 郵便番号 | C7: 542-0066 | E7: 「542-0066」と－（ハイフン）を入力してください。
B8: 事業所所在地 | C8: 大阪府大阪市中央区瓦屋町2-3-1 | E8: 住所が長い場合は、Alt+Enterで折り返してください。
B9: 事業所名称 | C9: 大阪自動車整備健康保険組合 | E9: 事業所名を入力してください。
B10: 事業主氏名 | C10: 理事長 健保 太郎 | E10: 代表者名を入力してください。
B11: 電話番号 | C11: 06-6762-6371 | E11: 「06-6762-6371」と－（ハイフン)を入力してください。

Sheet 入力
B2: 入力項目 | D2: 入力欄 | E2: 備考
A3: 1 | B3: 必須項目 | C3: 保険証の番号 | D3: 5402 | E3: 健康保険証の番号を入力
C4: 氏名 | D4: 大阪健保 整太郎 | E4: 氏名を入力
C5: 生年月日 | D5: 1946-10-10 | E5: 「S21.10.10」のように和暦で入力して下さい。
C6: 健保の従前の標準報酬月額 | D6: 710 | E6: 「1390」・「58」等健保の従前の標準報酬月額を入力して下さい。 | I6: =D8+95 -> 2018-04-06
C7: 従前の改定年月日 | D7: 2017-09-01 | E7: 従前の改定月を「H29.9.1」と和暦で入力して下さい。 | G7: 1 | H7: 1.昇給
C8: 固定給の変動した月 | D8: 2018-01-01 | E8: 昇(降)給月を「H30.1.1」と和暦で入力して下さい。 ※他のセルと連動していますので必ず変動月の初日を入力して下さい。 | G8: 2 | H8: 2.降給 | I8: =IF(ISNUMBER(D9),VLOOKUP(D9,G7:H8,2,0),"") -> 1.昇給
C9: 昇給降給の別 | D9: 1 | E9: 昇給の場合は「1」降給の場合は「2」を入力して下さい。
C10: =I10 -> 2018-01-01 | D10: 31 | E10: 上記3ヶ月の支払基礎日数を入力(31日の場合「31」と入力) 月給制の場合は〆から〆の日数を入力 日給、パートの場合は出勤日数を入力 | G10: =IF(ISNUMBER(D29),D29,D3) -> 5555 | I10: =D8 -> 2018-01-01
C11: =I11 -> 2018-02-01 | D11: 31 | I11: =I10+31 -> 2018-02-01
C12: 2018-03-04 | D12: 28 | I12: =I11+31 -> 2018-03-04
C13: =I10 -> 2018-01-01 | D13: 1500000 | E13: 各月の金銭による報酬を入力 300,000円の場合「300000」と入力 | G13: =D13+D26 -> 1500000
C14: =I11 -> 2018-02-01 | D14: 1500000 | G14: =D14+D27 -> 1500000 | I14: =D13+D14+D15+D26+D27+D28 -> 4500000
C15: 2018-03-04 | D15: 1500000 | G15: =D15+D28 -> 1500000 | I15: =ROUNDDOWN(I14/3,0) -> 1500000
C16: 備考4 | D16: 基本給増 | E16: 昇給・降給の理由を入力（基本給増・家族手当増・通勤手当増等） | I16: =I14-D25 -> 4500000
B17: 該当する場合入力 | C17: 備考1 | D17: 1 | E17: 70歳以上被用者に該当する場合「1」を入力 | I17: =ROUNDDOWN(I16/3,0) -> 1500000
D18: 123456789012 | E18: 備考1に「1」を入力した場合個人番号12桁を入力
C19: 備考2 | E19: 二以上事業所勤務者に該当する場合は「2」を入力 | G19: =IF(I14=I16,I14,I16) -> 4500000 | H19: =IF(ISNUMBER(D13),G19/3,0) -> 1500000 | I19: =IF(AND(1<=H19,93000>H19),IF(AND(1<=H19,63000>H19),58,IF(AND(63000<=H19,73000>H19),68,IF(AND(73000<=H19,83000>H19),78,IF(AND(83000<=H19,93000>H19),88)))),"") -> 
C20: 備考3 | E20: 短時間労働者(特定適用事業所）に該当する場合は「3」を入力 | H20: =IF(AND(1<=H19,93000>H19),I19,IF(AND(93000<=H19,175000>H19),I20,IF(AND(175000<=H19,350000>H19),I21,IF(AND(350000<=H19,635000>H19),I22,IF(AND(635000<=H19,1005000>H19),I23,IF(AND(1005000<=H19),I24,"")))))) -> 1390 | I20: =IF(AND(93000<=H19,130000>H19),IF(AND(93000<=H19,101000>H19),98,IF(AND(101000<=H19,107000>H19),104,IF(AND(107000<=H19,114000>H19),110,IF(AND(114000<=H19,122000>H19),118,IF(AND(122000<=H19,130000>H19),126,""))))),IF(AND(130000<=H19,138000>H19),134,IF(AND(138000<=H19,146000>H19),142,IF(AND(146000<=H19,155000>H19),150,IF(AND(155000<=H19,165000>H19),160,IF(AND(165000<=H19,175000>H19),170,"")))))) -> 
C21: 備考5 | E21: 健康保険のみ月額変更に該当する場合は「5」を入力(88以下・620以上の変動） | H21: =IF(AND(1<=H19,175000>H19),I25,IF(AND(175000<=H19,350000>H19),I26,IF(AND(350000<=H19,635000>H19),I27,IF(635000<=H19,I28,"")))) -> 650 | I21: =IF(AND(175000<=H19,250000>H19),IF(AND(175000<=H19,185000>H19),180,IF(AND(185000<=H19,195000>H19),190,IF(AND(195000<=H19,210000>H19),200,IF(AND(210000<=H19,230000>H19),220,IF(AND(230000<=H19,250000>H19),240,""))))),IF(AND(250000<=H19,270000>H19),260,IF(AND(270000<=H19,290000>H19),280,IF(AND(290000<=H19,310000>H19),300,IF(AND(310000<=H19,330000>H19),320,IF(AND(330000<=H19,350000>H19),340,"")))))) -> 
C22: 備考6 | E22: その他の事由がある場合は「6」を入力 | G22: 健保の従前 | I22: =IF(AND(350000<=H19,485000>H19),IF(AND(350000<=H19,370000>H19),360,IF(AND(370000<=H19,395000>H19),380,IF(AND(395000<=H19,425000>H19),410,IF(AND(425000<=H19,455000>H19),440,IF(AND(455000<=H19,485000>H19),470,""))))),IF(AND(485000<=H19,515000>H19),500,IF(AND(515000<=H19,545000>H19),530,IF(AND(545000<=H19,575000>H19),560,IF(AND(575000<=H19,605000>H19),590,IF(AND(605000<=H19,635000>H19),620,"")))))) -> 
E23: 「6」を入力した場合その事由を入力 | G23: =IF(ISNUMBER(D6),D6,"") -> 710 | I23: =IF(AND(635000<=H19,810000>H19),IF(AND(635000<=H19,665000>H19),650,IF(AND(665000<=H19,695000>H19),680,IF(AND(695000<=H19,730000>H19),710,IF(AND(730000<=H19,770000>H19),750,IF(AND(770000<=H19,810000>H19),790,""))))),IF(AND(810000<=H19,855000>H19),830,IF(AND(855000<=H19,905000>H19),880,IF(AND(905000<=H19,955000>H19),930,IF(AND(955000<=H19,1005000>H19),980,""))))) -> 
C24: 遡及支払がある場合 | D24: 2018-01-01 | E24: 遡及支払のある月を「H29.9.1」と和暦で入力して下さい。 | G24: 厚年の従前 | I24: =IF(AND(1005000<=H19,1055000>H19),1030,IF(AND(1055000<=H19,1115000>H19),1090,IF(AND(1115000<=H19,1175000>H19),1150,IF(AND(1175000<=H19,1235000>H19),1210,IF(AND(1235000<=H19,1295000>H19),1270,IF(AND(1295000<=H19,1355000>H19),1330,IF(1355000<=H19,1390,""))))))) -> 1390
E25: 遡及支払の金額を入力 | G25: =IF(D6<58,0,IF(D6<88,88,IF(D6>650,650,D6))) -> 650 | I25: =IF(AND(1<=H19,130000>H19),IF(AND(1<=H19,93000>H19),88,IF(AND(93000<=H19,101000>H19),98,IF(AND(101000<=H19,107000>H19),104,IF(AND(107000<=H19,114000>H19),110,IF(AND(114000<=H19,122000>H19),118,IF(AND(122000<=H19,130000>H19),126,"")))))),IF(AND(130000<=H19,138000>H19),134,IF(AND(138000<=H19,146000>H19),142,IF(AND(146000<=H19,155000>H19),150,IF(AND(155000<=H19,165000>H19),"160",IF(AND(165000<=H19,175000>H19),170,"")))))) -> 
C26: =I10 -> 2018-01-01 | E26: 各月に現物で支給した場合その額を入力 基本ブランクで結構です | I26: =IF(AND(175000<=H19,250000>H19),IF(AND(175000<=H19,185000>H19),180,IF(AND(185000<=H19,195000>H19),190,IF(AND(195000<=H19,210000>H19),200,IF(AND(210000<=H19,230000>H19),220,IF(AND(230000<=H19,250000>H19),240,""))))),IF(AND(250000<=H19,270000>H19),260,IF(AND(270000<=H19,290000>H19),280,IF(AND(290000<=H19,310000>H19),300,IF(AND(310000<=H19,330000>H19),320,IF(AND(330000<=H19,350000>H19),340,"")))))) -> 
C27: =I11 -> 2018-02-01 | I27: =IF(AND(350000<=H19,485000>H19),IF(AND(350000<=H19,370000>H19),360,IF(AND(370000<=H19,395000>H19),380,IF(AND(395000<=H19,425000>H19),410,IF(AND(425000<=H19,455000>H19),440,IF(AND(455000<=H19,485000>H19),470,""))))),IF(AND(485000<=H19,515000>H19),500,IF(AND(515000<=H19,545000>H19),530,IF(AND(545000<=H19,575000>H19),560,IF(AND(575000<=H19,605000>H19),590,IF(AND(605000<=H19,635000>H19),620,"")))))) -> 
C28: 2018-03-04 | I28: =IF(635000<=H19,650,"") -> 650
C29: 年金番号 | D29: 5555 | E29: 健保の番号と年金の番号が違うときのみ入力してください。
A31: 2 | B31: 必須項目 | C31: 保険証の番号 | D31: 5403 | E31: 健康保険証の番号を入力
C32: 氏名 | D32: 大阪 花 | E32: 氏名を入力
C33: 生年月日 | D33: 1947-12-12 | E33: 「H10.10.10」のように和暦で入力して下さい。
C34: 健保の従前の標準報酬月額 | D34: 98 | E34: 「1390」・「58」等健保の従前の標準報酬月額を入力して下さい。 | I34: =D36+95 -> 2018-03-06
C35: 従前の改定年月日 | D35: 2017-09-01 | E35: 従前の改定月を「H29.9.1」と和暦で入力して下さい。 | G35: 1 | H35: 1.昇給
C36: 固定給の変動した月 | D36: 2017-12-01 | E36: 昇(降)給月を「H30.1.1」と和暦で入力して下さい。 ※他のセルと連動していますので必ず変動月の初日を入力して下さい。 | G36: 2 | H36: 2.降給 | I36: =IF(ISNUMBER(D37),VLOOKUP(D37,G35:H36,2,0),"") -> 2.降給
C37: 昇給降給の別 | D37: 2 | E37: 昇給の場合は「1」降給の場合は「2」を入力して下さい。
C38: =I38 -> 2017-12-01 | D38: 30 | E38: 上記3ヶ月の支払基礎日数を入力(31日の場合「31」と入力) 月給制の場合は〆から〆の日数を入力 日給、パートの場合は出勤日数を入力 | G38: =IF(ISNUMBER(D57),D57,D31) -> 5403 | I38: =D36 -> 2017-12-01
C39: =I39 -> 2018-01-01 | D39: 31 | I39: =I38+31 -> 2018-01-01
C40: 2018-02-01 | D40: 31 | I40: =I39+31 -> 2018-02-01
C41: =I38 -> 2017-12-01 | D41: 50000 | E41: 各月の金銭による報酬を入力 300,000円の場合「300000」と入力 | G41: =D41+D54 -> 50000
C42: =I39 -> 2018-01-01 | D42: 50000 | G42: =D42+D55 -> 50000 | I42: =D41+D42+D43+D54+D55+D56 -> 150000
C43: 2018-02-01 | D43: 50000 | G43: =D43+D56 -> 50000 | I43: =ROUNDDOWN(I42/3,0) -> 50000
C44: 備考4 | D44: 基本給減 | E44: 昇給・降給の理由を入力（基本給増・家族手当増・通勤手当増等） | I44: =I42-D53 -> 150000
B45: 該当する場合入力 | C45: 備考1 | D45: 1 | E45: 70歳以上被用者に該当する場合「1」を入力 | I45: =ROUNDDOWN(I44/3,0) -> 50000
D46: 987654321098 | E46: 備考1に「1」を入力した場合個人番号12桁を入力
C47: 備考2 | E47: 二以上事業所勤務者に該当する場合は「2」を入力 | G47: =IF(I42=I44,I42,I44) -> 150000 | H47: =IF(ISNUMBER(D41),G47/3,0) -> 50000 | I47: =IF(AND(1<=H47,93000>H47),IF(AND(1<=H47,63000>H47),58,IF(AND(63000<=H47,73000>H47),68,IF(AND(73000<=H47,83000>H47),78,IF(AND(83000<=H47,93000>H47),88)))),"") -> 58
C48: 備考3 | E48: 短時間労働者(特定適用事業所）に該当する場合は「3」を入力 | H48: =IF(AND(1<=H47,93000>H47),I47,IF(AND(93000<=H47,175000>H47),I48,IF(AND(175000<=H47,350000>H47),I49,IF(AND(350000<=H47,635000>H47),I50,IF(AND(635000<=H47,1005000>H47),I51,IF(AND(1005000<=H47),I52,"")))))) -> 58 | I48: =IF(AND(93000<=H47,130000>H47),IF(AND(93000<=H47,101000>H47),98,IF(AND(101000<=H47,107000>H47),104,IF(AND(107000<=H47,114000>H47),110,IF(AND(114000<=H47,122000>H47),118,IF(AND(122000<=H47,130000>H47),126,""))))),IF(AND(130000<=H47,138000>H47),134,IF(AND(138000<=H47,146000>H47),142,IF(AND(146000<=H47,155000>H47),150,IF(AND(155000<=H47,165000>H47),160,IF(AND(165000<=H47,175000>H47),170,"")))))) -> 
C49: 備考5 | E49: 健康保険のみ月額変更に該当する場合は「5」を入力(88以下・620以上の変動） | H49: =IF(AND(1<=H47,175000>H47),I53,IF(AND(175000<=H47,350000>H47),I54,IF(AND(350000<=H47,635000>H47),I55,IF(635000<=H47,I56,"")))) -> 88 | I49: =IF(AND(175000<=H47,250000>H47),IF(AND(175000<=H47,185000>H47),180,IF(AND(185000<=H47,195000>H47),190,IF(AND(195000<=H47,210000>H47),200,IF(AND(210000<=H47,230000>H47),220,IF(AND(230000<=H47,250000>H47),240,""))))),IF(AND(250000<=H47,270000>H47),260,IF(AND(270000<=H47,290000>H47),280,IF(AND(290000<=H47,310000>H47),300,IF(AND(310000<=H47,330000>H47),320,IF(AND(330000<=H47,350000>H47),340,"")))))) -> 
C50: 備考6 | E50: その他の事由がある場合は「6」を入力 | G50: 健保の従前 | I50: =IF(AND(350000<=H47,485000>H47),IF(AND(350000<=H47,370000>H47),360,IF(AND(370000<=H47,395000>H47),380,IF(AND(395000<=H47,425000>H47),410,IF(AND(425000<=H47,455000>H47),440,IF(AND(455000<=H47,485000>H47),470,""))))),IF(AND(485000<=H47,515000>H47),500,IF(AND(515000<=H47,545000>H47),530,IF(AND(545000<=H47,575000>H47),560,IF(AND(575000<=H47,605000>H47),590,IF(AND(605000<=H47,635000>H47),620,"")))))) -> 
E51: 「6」を入力した場合その事由を入力 | G51: =IF(ISNUMBER(D34),D34,"") -> 98 | I51: =IF(AND(635000<=H47,810000>H47),IF(AND(635000<=H47,665000>H47),650,IF(AND(665000<=H47,695000>H47),680,IF(AND(695000<=H47,730000>H47),710,IF(AND(730000<=H47,770000>H47),750,IF(AND(770000<=H47,810000>H47),790,""))))),IF(AND(810000<=H47,855000>H47),830,IF(AND(855000<=H47,905000>H47),880,IF(AND(905000<=H47,955000>H47),930,IF(AND(955000<=H47,1005000>H47),980,""))))) -> 
C52: 遡及支払がある場合 | E52: 遡及支払のある月を「H29.9.1」と和暦で入力して下さい。 | G52: 厚年の従前 | I52: =IF(AND(1005000<=H47,1055000>H47),1030,IF(AND(1055000<=H47,1115000>H47),1090,IF(AND(1115000<=H47,1175000>H47),1150,IF(AND(1175000<=H47,1235000>H47),1210,IF(AND(1235000<=H47,1295000>H47),1270,IF(AND(1295000<=H47,1355000>H47),1330,IF(1355000<=H47,1390,""))))))) -> 
E53: 遡及支払の金額を入力 | G53: =IF(D34<58,0,IF(D34<88,88,IF(D34>650,650,D34))) -> 98 | I53: =IF(AND(1<=H47,130000>H47),IF(AND(1<=H47,93000>H47),88,IF(AND(93000<=H47,101000>H47),98,IF(AND(101000<=H47,107000>H47),104,IF(AND(107000<=H47,114000>H47),110,IF(AND(114000<=H47,122000>H47),118,IF(AND(122000<=H47,130000>H47),126,"")))))),IF(AND(130000<=H47,138000>H47),134,IF(AND(138000<=H47,146000>H47),142,IF(AND(146000<=H47,155000>H47),150,IF(AND(155000<=H47,165000>H47),"160",IF(AND(165000<=H47,175000>H47),170,"")))))) -> 88
C54: =I38 -> 2017-12-01 | E54: 各月に現物で支給した場合その額を入力 基本ブランクで結構です | I54: =IF(AND(175000<=H47,250000>H47),IF(AND(175000<=H47,185000>H47),180,IF(AND(185000<=H47,195000>H47),190,IF(AND(195000<=H47,210000>H47),200,IF(AND(210000<=H47,230000>H47),220,IF(AND(230000<=H47,250000>H47),240,""))))),IF(AND(250000<=H47,270000>H47),260,IF(AND(270000<=H47,290000>H47),280,IF(AND(290000<=H47,310000>H47),300,IF(AND(310000<=H47,330000>H47),320,IF(AND(330000<=H47,350000>H47),340,"")))))) -> 
C55: =I39 -> 2018-01-01 | I55: =IF(AND(350000<=H47,485000>H47),IF(AND(350000<=H47,370000>H47),360,IF(AND(370000<=H47,395000>H47),380,IF(AND(395000<=H47,425000>H47),410,IF(AND(425000<=H47,455000>H47),440,IF(AND(455000<=H47,485000>H47),470,""))))),IF(AND(485000<=H47,515000>H47),500,IF(AND(515000<=H47,545000>H47),530,IF(AND(545000<=H47,575000>H47),560,IF(AND(575000<=H47,605000>H47),590,IF(AND(605000<=H47,635000>H47),620,"")))))) -> 
C56: 2018-02-01 | I56: =IF(635000<=H47,650,"") -> 
C57: 年金番号 | E57: 健保の番号と年金の番号が違うときのみ入力してください。
A59: 3 | B59: 必須項目 | C59: 保険証の番号 | D59: 5404 | E59: 健康保険証の番号を入力
C60: 氏名 | D60: クリス ジョンソン | E60: 氏名を入力
C61: 生年月日 | D61: 1986-02-03 | E61: 「H10.10.10」のように和暦で入力して下さい。
C62: 健保の従前の標準報酬月額 | D62: 620 | E62: 「1390」・「58」等健保の従前の標準報酬月額を入力して下さい。 | I62: =D64+95 -> 2018-05-07
C63: 従前の改定年月日 | D63: 2017-12-01 | E63: 従前の改定月を「H29.9.1」と和暦で入力して下さい。 | G63: 1 | H63: 1.昇給
C64: 固定給の変動した月 | D64: 2018-02-01 | E64: 昇(降)給月を「H30.1.1」と和暦で入力して下さい。 ※他のセルと連動していますので必ず変動月の初日を入力して下さい。 | G64: 2 | H64: 2.降給 | I64: =IF(ISNUMBER(D65),VLOOKUP(D65,G63:H64,2,0),"") -> 1.昇給
C65: 昇給降給の別 | D65: 1 | E65: 昇給の場合は「1」降給の場合は「2」を入力して下さい。
C66: =I66 -> 2018-02-01 | D66: 31 | E66: 上記3ヶ月の支払基礎日数を入力(31日の場合「31」と入力) 月給制の場合は〆から〆の日数を入力 日給、パートの場合は出勤日数を入力 | G66: =IF(ISNUMBER(D85),D85,D59) -> 5600 | I66: =D64 -> 2018-02-01
C67: =I67 -> 2018-03-04 | D67: 28 | I67: =I66+31 -> 2018-03-04
C68: 2018-04-04 | D68: 31 | I68: =I67+31 -> 2018-04-04
C69: =I66 -> 2018-02-01 | D69: 1500000 | E69: 各月の金銭による報酬を入力 300,000円の場合「300000」と入力 | G69: =D69+D82 -> 1500000
C70: =I67 -> 2018-03-04 | D70: 1500000 | G70: =D70+D83 -> 1500000 | I70: =D69+D70+D71+D82+D83+D84 -> 4500000
C71: 2018-04-04 | D71: 1500000 | G71: =D71+D84 -> 1500000 | I71: =ROUNDDOWN(I70/3,0) -> 1500000
C72: 備考4 | D72: 基本給増 | E72: 昇給・降給の理由を入力（基本給増・家族手当増・通勤手当増等） | I72: =I70-D81 -> 4500000
B73: 該当する場合入力 | C73: 備考1 | E73: 70歳以上被用者に該当する場合「1」を入力 | I73: =ROUNDDOWN(I72/3,0) -> 1500000
E74: 備考1に「1」を入力した場合個人番号12桁を入力
C75: 備考2 | E75: 二以上事業所勤務者に該当する場合は「2」を入力 | G75: =IF(I70=I72,I70,I72) -> 4500000 | H75: =IF(ISNUMBER(D69),G75/3,0) -> 1500000 | I75: =IF(AND(1<=H75,93000>H75),IF(AND(1<=H75,63000>H75),58,IF(AND(63000<=H75,73000>H75),68,IF(AND(73000<=H75,83000>H75),78,IF(AND(83000<=H75,93000>H75),88)))),"") -> 
C76: 備考3 | E76: 短時間労働者(特定適用事業所）に該当する場合は「3」を入力 | H76: =IF(AND(1<=H75,93000>H75),I75,IF(AND(93000<=H75,175000>H75),I76,IF(AND(175000<=H75,350000>H75),I77,IF(AND(350000<=H75,635000>H75),I78,IF(AND(635000<=H75,1005000>H75),I79,IF(AND(1005000<=H75),I80,"")))))) -> 1390 | I76: =IF(AND(93000<=H75,130000>H75),IF(AND(93000<=H75,101000>H75),98,IF(AND(101000<=H75,107000>H75),104,IF(AND(107000<=H75,114000>H75),110,IF(AND(114000<=H75,122000>H75),118,IF(AND(122000<=H75,130000>H75),126,""))))),IF(AND(130000<=H75,138000>H75),134,IF(AND(138000<=H75,146000>H75),142,IF(AND(146000<=H75,155000>H75),150,IF(AND(155000<=H75,165000>H75),160,IF(AND(165000<=H75,175000>H75),170,"")))))) -> 
C77: 備考5 | D77: 5 | E77: 健康保険のみ月額変更に該当する場合は「5」を入力(88以下・620以上の変動） | H77: =IF(AND(1<=H75,175000>H75),I81,IF(AND(175000<=H75,350000>H75),I82,IF(AND(350000<=H75,635000>H75),I83,IF(635000<=H75,I84,"")))) -> 650 | I77: =IF(AND(175000<=H75,250000>H75),IF(AND(175000<=H75,185000>H75),180,IF(AND(185000<=H75,195000>H75),190,IF(AND(195000<=H75,210000>H75),200,IF(AND(210000<=H75,230000>H75),220,IF(AND(230000<=H75,250000>H75),240,""))))),IF(AND(250000<=H75,270000>H75),260,IF(AND(270000<=H75,290000>H75),280,IF(AND(290000<=H75,310000>H75),300,IF(AND(310000<=H75,330000>H75),320,IF(AND(330000<=H75,350000>H75),340,"")))))) -> 
C78: 備考6 | E78: その他の事由がある場合は「6」を入力 | G78: 健保の従前 | I78: =IF(AND(350000<=H75,485000>H75),IF(AND(350000<=H75,370000>H75),360,IF(AND(370000<=H75,395000>H75),380,IF(AND(395000<=H75,425000>H75),410,IF(AND(425000<=H75,455000>H75),440,IF(AND(455000<=H75,485000>H75),470,""))))),IF(AND(485000<=H75,515000>H75),500,IF(AND(515000<=H75,545000>H75),530,IF(AND(545000<=H75,575000>H75),560,IF(AND(575000<=H75,605000>H75),590,IF(AND(605000<=H75,635000>H75),620,"")))))) -> 
E79: 「6」を入力した場合その事由を入力 | G79: =IF(ISNUMBER(D62),D62,"") -> 620 | I79: =IF(AND(635000<=H75,810000>H75),IF(AND(635000<=H75,665000>H75),650,IF(AND(665000<=H75,695000>H75),680,IF(AND(695000<=H75,730000>H75),710,IF(AND(730000<=H75,770000>H75),750,IF(AND(770000<=H75,810000>H75),790,""))))),IF(AND(810000<=H75,855000>H75),830,IF(AND(855000<=H75,905000>H75),880,IF(AND(905000<=H75,955000>H75),930,IF(AND(955000<=H75,1005000>H75),980,""))))) -> 
C80: 遡及支払がある場合 | E80: 遡及支払のある月を「H29.9.1」と和暦で入力して下さい。 | G80: 厚年の従前 | I80: =IF(AND(1005000<=H75,1055000>H75),1030,IF(AND(1055000<=H75,1115000>H75),1090,IF(AND(1115000<=H75,1175000>H75),1150,IF(AND(1175000<=H75,1235000>H75),1210,IF(AND(1235000<=H75,1295000>H75),1270,IF(AND(1295000<=H75,1355000>H75),1330,IF(1355000<=H75,1390,""))))))) -> 1390
E81: 遡及支払の金額を入力 | G81: =IF(D62<58,0,IF(D62<88,88,IF(D62>650,650,D62))) -> 620 | I81: =IF(AND(1<=H75,130000>H75),IF(AND(1<=H75,93000>H75),88,IF(AND(93000<=H75,101000>H75),98,IF(AND(101000<=H75,107000>H75),104,IF(AND(107000<=H75,114000>H75),110,IF(AND(114000<=H75,122000>H75),118,IF(AND(122000<=H75,130000>H75),126,"")))))),IF(AND(130000<=H75,138000>H75),134,IF(AND(138000<=H75,146000>H75),142,IF(AND(146000<=H75,155000>H75),150,IF(AND(155000<=H75,165000>H75),"160",IF(AND(165000<=H75,175000>H75),170,"")))))) -> 
C82: =I66 -> 2018-02-01 | E82: 各月に現物で支給した場合その額を入力 基本ブランクで結構です | I82: =IF(AND(175000<=H75,250000>H75),IF(AND(175000<=H75,185000>H75),180,IF(AND(185000<=H75,195000>H75),190,IF(AND(195000<=H75,210000>H75),200,IF(AND(210000<=H75,230000>H75),220,IF(AND(230000<=H75,250000>H75),240,""))))),IF(AND(250000<=H75,270000>H75),260,IF(AND(270000<=H75,290000>H75),280,IF(AND(290000<=H75,310000>H75),300,IF(AND(310000<=H75,330000>H75),320,IF(AND(330000<=H75,350000>H75),340,"")))))) -> 
C83: =I67 -> 2018-03-04 | I83: =IF(AND(350000<=H75,485000>H75),IF(AND(350000<=H75,370000>H75),360,IF(AND(370000<=H75,395000>H75),380,IF(AND(395000<=H75,425000>H75),410,IF(AND(425000<=H75,455000>H75),440,IF(AND(455000<=H75,485000>H75),470,""))))),IF(AND(485000<=H75,515000>H75),500,IF(AND(515000<=H75,545000>H75),530,IF(AND(545000<=H75,575000>H75),560,IF(AND(575000<=H75,605000>H75),590,IF(AND(605000<=H75,635000>H75),620,"")))))) -> 
C84: 2018-04-04 | I84: =IF(635000<=H75,650,"") -> 650
C85: 年金番号 | D85: 5600 | E85: 健保の番号と年金の番号が違うときのみ入力してください。
A87: 4 | B87: 必須項目 | C87: 保険証の番号 | D87: 5405 | E87: 健康保険証の番号を入力
C88: 氏名 | D88: ブラッド エルドレッド | E88: 氏名を入力
C89: 生年月日 | D89: 1981-04-08 | E89: 「H10.10.10」のように和暦で入力して下さい。
C90: 健保の従前の標準報酬月額 | D90: 300 | E90: 「1390」・「58」等健保の従前の標準報酬月額を入力して下さい。 | I90: =D92+95 -> 2018-05-07
C91: 従前の改定年月日 | D91: 2018-01-01 | E91: 従前の改定月を「H29.9.1」と和暦で入力して下さい。 | G91: 1 | H91: 1.昇給
C92: 固定給の変動した月 | D92: 2018-02-01 | E92: 昇(降)給月を「H30.1.1」と和暦で入力して下さい。 ※他のセルと連動していますので必ず変動月の初日を入力して下さい。 | G92: 2 | H92: 2.降給 | I92: =IF(ISNUMBER(D93),VLOOKUP(D93,G91:H92,2,0),"") -> 1.昇給
C93: 昇給降給の別 | D93: 1 | E93: 昇給の場合は「1」降給の場合は「2」を入力して下さい。
C94: =I94 -> 2018-02-01 | D94: 31 | E94: 上記3ヶ月の支払基礎日数を入力(31日の場合「31」と入力) 月給制の場合は〆から〆の日数を入力 日給、パートの場合は出勤日数を入力 | G94: =IF(ISNUMBER(D113),D113,D87) -> 5405 | I94: =D92 -> 2018-02-01
C95: =I95 -> 2018-03-04 | D95: 28 | I95: =I94+31 -> 2018-03-04
C96: 2018-04-04 | D96: 31 | I96: =I95+31 -> 2018-04-04
C97: =I94 -> 2018-02-01 | D97: 820000 | E97: 各月の金銭による報酬を入力 300,000円の場合「300000」と入力 | G97: =D97+D110 -> 820000
C98: =I95 -> 2018-03-04 | D98: 800000 | G98: =D98+D111 -> 800000 | I98: =D97+D98+D99+D110+D111+D112 -> 2420000
C99: 2018-04-04 | D99: 800000 | G99: =D99+D112 -> 800000 | I99: =ROUNDDOWN(I98/3,0) -> 806666
C100: 備考4 | E100: 昇給・降給の理由を入力（基本給増・家族手当増・通勤手当増等） | I100: =I98-D109 -> 2400000
B101: 該当する場合入力 | C101: 備考1 | E101: 70歳以上被用者に該当する場合「1」を入力 | I101: =ROUNDDOWN(I100/3,0) -> 800000
E102: 備考1に「1」を入力した場合個人番号12桁を入力
C103: 備考2 | D103: 2 | E103: 二以上事業所勤務者に該当する場合は「2」を入力 | G103: =IF(I98=I100,I98,I100) -> 2400000 | H103: =IF(ISNUMBER(D97),G103/3,0) -> 800000 | I103: =IF(AND(1<=H103,93000>H103),IF(AND(1<=H103,63000>H103),58,IF(AND(63000<=H103,73000>H103),68,IF(AND(73000<=H103,83000>H103),78,IF(AND(83000<=H103,93000>H103),88)))),"") -> 
C104: 備考3 | E104: 短時間労働者(特定適用事業所）に該当する場合は「3」を入力 | H104: =IF(AND(1<=H103,93000>H103),I103,IF(AND(93000<=H103,175000>H103),I104,IF(AND(175000<=H103,350000>H103),I105,IF(AND(350000<=H103,635000>H103),I106,IF(AND(635000<=H103,1005000>H103),I107,IF(AND(1005000<=H103),I108,"")))))) -> 790 | I104: =IF(AND(93000<=H103,130000>H103),IF(AND(93000<=H103,101000>H103),98,IF(AND(101000<=H103,107000>H103),104,IF(AND(107000<=H103,114000>H103),110,IF(AND(114000<=H103,122000>H103),118,IF(AND(122000<=H103,130000>H103),126,""))))),IF(AND(130000<=H103,138000>H103),134,IF(AND(138000<=H103,146000>H103),142,IF(AND(146000<=H103,155000>H103),150,IF(AND(155000<=H103,165000>H103),160,IF(AND(165000<=H103,175000>H103),170,"")))))) -> 
C105: 備考5 | E105: 健康保険のみ月額変更に該当する場合は「5」を入力(88以下・620以上の変動） | H105: =IF(AND(1<=H103,175000>H103),I109,IF(AND(175000<=H103,350000>H103),I110,IF(AND(350000<=H103,635000>H103),I111,IF(635000<=H103,I112,"")))) -> 650 | I105: =IF(AND(175000<=H103,250000>H103),IF(AND(175000<=H103,185000>H103),180,IF(AND(185000<=H103,195000>H103),190,IF(AND(195000<=H103,210000>H103),200,IF(AND(210000<=H103,230000>H103),220,IF(AND(230000<=H103,250000>H103),240,""))))),IF(AND(250000<=H103,270000>H103),260,IF(AND(270000<=H103,290000>H103),280,IF(AND(290000<=H103,310000>H103),300,IF(AND(310000<=H103,330000>H103),320,IF(AND(330000<=H103,350000>H103),340,"")))))) -> 
C106: 備考6 | E106: その他の事由がある場合は「6」を入力 | G106: 健保の従前 | I106: =IF(AND(350000<=H103,485000>H103),IF(AND(350000<=H103,370000>H103),360,IF(AND(370000<=H103,395000>H103),380,IF(AND(395000<=H103,425000>H103),410,IF(AND(425000<=H103,455000>H103),440,IF(AND(455000<=H103,485000>H103),470,""))))),IF(AND(485000<=H103,515000>H103),500,IF(AND(515000<=H103,545000>H103),530,IF(AND(545000<=H103,575000>H103),560,IF(AND(575000<=H103,605000>H103),590,IF(AND(605000<=H103,635000>H103),620,"")))))) -> 
E107: 「6」を入力した場合その事由を入力 | G107: =IF(ISNUMBER(D90),D90,"") -> 300 | I107: =IF(AND(635000<=H103,810000>H103),IF(AND(635000<=H103,665000>H103),650,IF(AND(665000<=H103,695000>H103),680,IF(AND(695000<=H103,730000>H103),710,IF(AND(730000<=H103,770000>H103),750,IF(AND(770000<=H103,810000>H103),790,""))))),IF(AND(810000<=H103,855000>H103),830,IF(AND(855000<=H103,905000>H103),880,IF(AND(905000<=H103,955000>H103),930,IF(AND(955000<=H103,1005000>H103),980,""))))) -> 790
C108: 遡及支払がある場合 | D108: 2018-02-01 | E108: 遡及支払のある月を「H29.9.1」と和暦で入力して下さい。 | G108: 厚年の従前 | I108: =IF(AND(1005000<=H103,1055000>H103),1030,IF(AND(1055000<=H103,1115000>H103),1090,IF(AND(1115000<=H103,1175000>H103),1150,IF(AND(1175000<=H103,1235000>H103),1210,IF(AND(1235000<=H103,1295000>H103),1270,IF(AND(1295000<=H103,1355000>H103),1330,IF(1355000<=H103,1390,""))))))) -> 
D109: 20000 | E109: 遡及支払の金額を入力 | G109: =IF(D90<58,0,IF(D90<88,88,IF(D90>650,650,D90))) -> 300 | I109: =IF(AND(1<=H103,130000>H103),IF(AND(1<=H103,93000>H103),88,IF(AND(93000<=H103,101000>H103),98,IF(AND(101000<=H103,107000>H103),104,IF(AND(107000<=H103,114000>H103),110,IF(AND(114000<=H103,122000>H103),118,IF(AND(122000<=H103,130000>H103),126,"")))))),IF(AND(130000<=H103,138000>H103),134,IF(AND(138000<=H103,146000>H103),142,IF(AND(146000<=H103,155000>H103),150,IF(AND(155000<=H103,165000>H103),"160",IF(AND(165000<=H103,175000>H103),170,"")))))) -> 
C110: =I94 -> 2018-02-01 | E110: 各月に現物で支給した場合その額を入力 基本ブランクで結構です | I110: =IF(AND(175000<=H103,250000>H103),IF(AND(175000<=H103,185000>H103),180,IF(AND(185000<=H103,195000>H103),190,IF(AND(195000<=H103,210000>H103),200,IF(AND(210000<=H103,230000>H103),220,IF(AND(230000<=H103,250000>H103),240,""))))),IF(AND(250000<=H103,270000>H103),260,IF(AND(270000<=H103,290000>H103),280,IF(AND(290000<=H103,310000>H103),300,IF(AND(310000<=H103,330000>H103),320,IF(AND(330000<=H103,350000>H103),340,"")))))) -> 
C111: =I95 -> 2018-03-04 | I111: =IF(AND(350000<=H103,485000>H103),IF(AND(350000<=H103,370000>H103),360,IF(AND(370000<=H103,395000>H103),380,IF(AND(395000<=H103,425000>H103),410,IF(AND(425000<=H103,455000>H103),440,IF(AND(455000<=H103,485000>H103),470,""))))),IF(AND(485000<=H103,515000>H103),500,IF(AND(515000<=H103,545000>H103),530,IF(AND(545000<=H103,575000>H103),560,IF(AND(575000<=H103,605000>H103),590,IF(AND(605000<=H103,635000>H103),620,"")))))) -> 
C112: 2018-04-04 | I112: =IF(635000<=H103,650,"") -> 650
C113: 年金番号 | E113: 健保の番号と年金の番号が違うときのみ入力してください。
A115: 5 | B115: 必須項目 | C115: 保険証の番号 | D115: 5406 | E115: 健康保険証の番号を入力
C116: 氏名 | D116: ジェイ ジャクソン | E116: 氏名を入力
C117: 生年月日 | D117: 1993-07-26 | E117: 「H10.10.10」のように和暦で入力して下さい。
C118: 健保の従前の標準報酬月額 | D118: 58 | E118: 「1390」・「58」等健保の従前の標準報酬月額を入力して下さい。 | I118: =D120+95 -> 2018-06-04
C119: 従前の改定年月日 | D119: 2017-11-01 | E119: 従前の改定月を「H29.9.1」と和暦で入力して下さい。 | G119: 1 | H119: 1.昇給
C120: 固定給の変動した月 | D120: 2018-03-01 | E120: 昇(降)給月を「H30.1.1」と和暦で入力して下さい。 ※他のセルと連動していますので必ず変動月の初日を入力して下さい。 | G120: 2 | H120: 2.降給 | I120: =IF(ISNUMBER(D121),VLOOKUP(D121,G119:H120,2,0),"") -> 1.昇給
C121: 昇給降給の別 | D121: 1 | E121: 昇給の場合は「1」降給の場合は「2」を入力して下さい。
C122: =I122 -> 2018-03-01 | D122: 28 | E122: 上記3ヶ月の支払基礎日数を入力(31日の場合「31」と入力) 月給制の場合は〆から〆の日数を入力 日給、パートの場合は出勤日数を入力 | G122: =IF(ISNUMBER(D141),D141,D115) -> 5800 | I122: =D120 -> 2018-03-01
C123: =I123 -> 2018-04-01 | D123: 31 | I123: =I122+31 -> 2018-04-01
C124: 2018-05-02 | D124: 30 | I124: =I123+31 -> 2018-05-02
C125: =I122 -> 2018-03-01 | D125: 2000000 | E125: 各月の金銭による報酬を入力 300,000円の場合「300000」と入力 | G125: =D125+D138 -> 2050000
C126: =I123 -> 2018-04-01 | D126: 2000000 | G126: =D126+D139 -> 2050000 | I126: =D125+D126+D127+D138+D139+D140 -> 6150000
C127: 2018-05-02 | D127: 2000000 | G127: =D127+D140 -> 2050000 | I127: =ROUNDDOWN(I126/3,0) -> 2050000
C128: 備考4 | D128: 役員就任 | E128: 昇給・降給の理由を入力（基本給増・家族手当増・通勤手当増等） | I128: =I126-D137 -> 6150000
B129: 該当する場合入力 | C129: 備考1 | E129: 70歳以上被用者に該当する場合「1」を入力 | I129: =ROUNDDOWN(I128/3,0) -> 2050000
E130: 備考1に「1」を入力した場合個人番号12桁を入力
C131: 備考2 | E131: 二以上事業所勤務者に該当する場合は「2」を入力 | G131: =IF(I126=I128,I126,I128) -> 6150000 | H131: =IF(ISNUMBER(D125),G131/3,0) -> 2050000 | I131: =IF(AND(1<=H131,93000>H131),IF(AND(1<=H131,63000>H131),58,IF(AND(63000<=H131,73000>H131),68,IF(AND(73000<=H131,83000>H131),78,IF(AND(83000<=H131,93000>H131),88)))),"") -> 
C132: 備考3 | D132: 3 | E132: 短時間労働者(特定適用事業所）に該当する場合は「3」を入力 | H132: =IF(AND(1<=H131,93000>H131),I131,IF(AND(93000<=H131,175000>H131),I132,IF(AND(175000<=H131,350000>H131),I133,IF(AND(350000<=H131,635000>H131),I134,IF(AND(635000<=H131,1005000>H131),I135,IF(AND(1005000<=H131),I136,"")))))) -> 1390 | I132: =IF(AND(93000<=H131,130000>H131),IF(AND(93000<=H131,101000>H131),98,IF(AND(101000<=H131,107000>H131),104,IF(AND(107000<=H131,114000>H131),110,IF(AND(114000<=H131,122000>H131),118,IF(AND(122000<=H131,130000>H131),126,""))))),IF(AND(130000<=H131,138000>H131),134,IF(AND(138000<=H131,146000>H131),142,IF(AND(146000<=H131,155000>H131),150,IF(AND(155000<=H131,165000>H131),160,IF(AND(165000<=H131,175000>H131),170,"")))))) -> 
C133: 備考5 | E133: 健康保険のみ月額変更に該当する場合は「5」を入力(88以下・620以上の変動） | H133: =IF(AND(1<=H131,175000>H131),I137,IF(AND(175000<=H131,350000>H131),I138,IF(AND(350000<=H131,635000>H131),I139,IF(635000<=H131,I140,"")))) -> 650 | I133: =IF(AND(175000<=H131,250000>H131),IF(AND(175000<=H131,185000>H131),180,IF(AND(185000<=H131,195000>H131),190,IF(AND(195000<=H131,210000>H131),200,IF(AND(210000<=H131,230000>H131),220,IF(AND(230000<=H131,250000>H131),240,""))))),IF(AND(250000<=H131,270000>H131),260,IF(AND(270000<=H131,290000>H131),280,IF(AND(290000<=H131,310000>H131),300,IF(AND(310000<=H131,330000>H131),320,IF(AND(330000<=H131,350000>H131),340,"")))))) -> 
C134: 備考6 | D134: 6 | E134: その他の事由がある場合は「6」を入力 | G134: 健保の従前 | I134: =IF(AND(350000<=H131,485000>H131),IF(AND(350000<=H131,370000>H131),360,IF(AND(370000<=H131,395000>H131),380,IF(AND(395000<=H131,425000>H131),410,IF(AND(425000<=H131,455000>H131),440,IF(AND(455000<=H131,485000>H131),470,""))))),IF(AND(485000<=H131,515000>H131),500,IF(AND(515000<=H131,545000>H131),530,IF(AND(545000<=H131,575000>H131),560,IF(AND(575000<=H131,605000>H131),590,IF(AND(605000<=H131,635000>H131),620,"")))))) -> 
D135: 短時間役員 | E135: 「6」を入力した場合その事由を入力 | G135: =IF(ISNUMBER(D118),D118,"") -> 58 | I135: =IF(AND(635000<=H131,810000>H131),IF(AND(635000<=H131,665000>H131),650,IF(AND(665000<=H131,695000>H131),680,IF(AND(695000<=H131,730000>H131),710,IF(AND(730000<=H131,770000>H131),750,IF(AND(770000<=H131,810000>H131),790,""))))),IF(AND(810000<=H131,855000>H131),830,IF(AND(855000<=H131,905000>H131),880,IF(AND(905000<=H131,955000>H131),930,IF(AND(955000<=H131,1005000>H131),980,""))))) -> 
C136: 遡及支払がある場合 | E136: 遡及支払のある月を「H29.9.1」と和暦で入力して下さい。 | G136: 厚年の従前 | I136: =IF(AND(1005000<=H131,1055000>H131),1030,IF(AND(1055000<=H131,1115000>H131),1090,IF(AND(1115000<=H131,1175000>H131),1150,IF(AND(1175000<=H131,1235000>H131),1210,IF(AND(1235000<=H131,1295000>H131),1270,IF(AND(1295000<=H131,1355000>H131),1330,IF(1355000<=H131,1390,""))))))) -> 1390
E137: 遡及支払の金額を入力 | G137: =IF(D118<58,0,IF(D118<88,88,IF(D118>650,650,D118))) -> 88 | I137: =IF(AND(1<=H131,130000>H131),IF(AND(1<=H131,93000>H131),88,IF(AND(93000<=H131,101000>H131),98,IF(AND(101000<=H131,107000>H131),104,IF(AND(107000<=H131,114000>H131),110,IF(AND(114000<=H131,122000>H131),118,IF(AND(122000<=H131,130000>H131),126,"")))))),IF(AND(130000<=H131,138000>H131),134,IF(AND(138000<=H131,146000>H131),142,IF(AND(146000<=H131,155000>H131),150,IF(AND(155000<=H131,165000>H131),"160",IF(AND(165000<=H131,175000>H131),170,"")))))) -> 
C138: =I122 -> 2018-03-01 | D138: 50000 | E138: 各月に現物で支給した場合その額を入力 基本ブランクで結構です | I138: =IF(AND(175000<=H131,250000>H131),IF(AND(175000<=H131,185000>H131),180,IF(AND(185000<=H131,195000>H131),190,IF(AND(195000<=H131,210000>H131),200,IF(AND(210000<=H131,230000>H131),220,IF(AND(230000<=H131,250000>H131),240,""))))),IF(AND(250000<=H131,270000>H131),260,IF(AND(270000<=H131,290000>H131),280,IF(AND(290000<=H131,310000>H131),300,IF(AND(310000<=H131,330000>H131),320,IF(AND(330000<=H131,350000>H131),340,"")))))) -> 
C139: =I123 -> 2018-04-01 | D139: 50000 | I139: =IF(AND(350000<=H131,485000>H131),IF(AND(350000<=H131,370000>H131),360,IF(AND(370000<=H131,395000>H131),380,IF(AND(395000<=H131,425000>H131),410,IF(AND(425000<=H131,455000>H131),440,IF(AND(455000<=H131,485000>H131),470,""))))),IF(AND(485000<=H131,515000>H131),500,IF(AND(515000<=H131,545000>H131),530,IF(AND(545000<=H131,575000>H131),560,IF(AND(575000<=H131,605000>H131),590,IF(AND(605000<=H131,635000>H131),620,"")))))) -> 
C140: 2018-05-02 | D140: 50000 | I140: =IF(635000<=H131,650,"") -> 650
C141: 年金番号 | D141: 5800 | E141: 健保の番号と年金の番号が違うときのみ入力してください。

Sheet 健保正
BW1: 常務理事 | CH1: 事務長 | CS1: 部長 | DD1: 課長 | DO1: 係長 | DZ1: 係
O2: 健康保険 被保険者報酬月額変更届
A10: =基本情報登録!C2 -> 2021-04-22
A16: 提出者記入欄 | F16: 記号 | Q16: =基本情報登録!C6 -> 532
Q21: 届書記入の個人番号(基礎年金番号)に誤りがないことを確認しました。 | DB21: 受付印
Q24: 〒 | T24: =基本情報登録!C7 -> 542-0066
F26: 事業所 所在地
Q27: =基本情報登録!C8 -> 大阪府大阪市中央区瓦屋町2-3-1
F35: 事業所 名称 | Q35: =基本情報登録!C9 -> 大阪自動車整備健康保険組合
F42: 事業主 氏名 | Q42: =基本情報登録!C10 -> 理事長 健保 太郎
F49: 電話番号 | Q49: =基本情報登録!C11 -> 06-6762-6371
BT51: 社会保険労務士記載欄
A69: 項目名 | F69: 1保険証番号 | U69: 2被保険者氏名 | BP69: 3生年月日 | CR69: 4改定年月 | DK69: 10個人番号(基礎年金番号)
F73: 5従前の標準報酬月額 | AS73: 6従前改定月 | BL73: 7昇(降)給 | CG73: 8遡及支払額 | DK73: 18備考
F77: 9給与 支払月 | O77: 10給料計算の基礎日数 | X77: 報酬月額 | CG77: 14総計 | DB77: 決定後標準報酬月額
CG80: 15平均額
X81: 11通貨によるものの額 | AS81: 12現物によるものの額 | BL81: 13合計11+12
CG83: 16修正平均額
A89: １ | F89: 1 | I89: =IF(ISNUMBER(入力!D3),入力!D3,"") -> 5402 | U89: 2 | X89: =IF(ISTEXT(入力!D4),入力!D4,"") -> 大阪健保 整太郎 | BP89: 3 | BR89: =IF(ISNUMBER(入力!D5),入力!D5,"") -> 1946-10-10 | CR89: 4 | CT89: =IF(ISNUMBER(入力!D8),入力!I6,"") -> 2018-04-06
DK93: 18 | DN93: =IF(ISNUMBER(入力!D17),1,"") -> 1 | DP93: =IF(ISNUMBER(入力!D17),"70歳以上被用者月額変更","") -> 70歳以上被用者月額変更
F94: 5 | I94: 健 | L94: =IF(ISNUMBER(入力!D6),入力!G23,"") -> 710 | V94: 千円 | Z94: 年 | AC94: =IF(ISNUMBER(入力!D6),入力!G25,"") -> 650 | AO94: 千円 | AS94: 6 | AU94: =IF(ISNUMBER(入力!D7),入力!D7,"") -> 2017-09-01 | BL94: 7 | BN94: =IF(ISNUMBER(入力!D8),入力!D8,"") -> 2018-01-01 | BS94: 月 | BU94: =IF(ISNUMBER(入力!D9),入力!I8,"") -> 1.昇給 | CG94: 8 | CI94: =IF(ISNUMBER(入力!D24),入力!D24,"") -> 2018-01-01 | CN94: 月 | CP94: =IF(ISNUMBER(入力!D25),入力!D25,"") ->  | DI94: 円
DN96: =IF(ISNUMBER(入力!D19),2,"") ->  | DP96: =IF(ISNUMBER(入力!D19),"二以上勤務","") -> 
F99: 9 | I99: =IF(ISNUMBER(入力!D8),入力!I10,"") -> 2018-01-01 | M99: 月 | O99: 10 | R99: =IF(ISNUMBER(入力!D10),入力!D10,"") -> 31 | V99: 日 | X99: 11 | AA99: =IF(ISNUMBER(入力!D13),入力!D13,"") -> 1500000 | AQ99: 円 | AS99: 12 | AV99: =IF(ISNUMBER(入力!D26),入力!D26,"") ->  | BJ99: 円 | BL99: 13 | BO99: =IF(ISNUMBER(入力!D13),入力!G13,"") -> 1500000 | CE99: 円 | CG99: 14 | CJ99: =IF(ISNUMBER(入力!D13),入力!I14,"") -> 4500000 | CZ99: 円 | DB99: 健 | DD99: =IF(ISNUMBER(入力!D13),入力!H20,"") -> 1390 | DN99: =IF(ISNUMBER(入力!D20),3,"") ->  | DP99: =IF(ISNUMBER(入力!D20),"短時間労働者(特定適用事業所","") -> 
DN102: 4 | DP102: 昇給・降給の理由
I104: =IF(ISNUMBER(入力!D8),入力!I11,"") -> 2018-02-01 | M104: 月 | R104: =IF(ISNUMBER(入力!D11),入力!D11,"") -> 31 | V104: 日 | AA104: =IF(ISNUMBER(入力!D14),入力!D14,"") -> 1500000 | AQ104: 円 | AV104: =IF(ISNUMBER(入力!D27),入力!D27,"") ->  | BJ104: 円 | BO104: =IF(ISNUMBER(入力!D14),入力!G14,"") -> 1500000 | CE104: 円 | CG104: 15 | CJ104: =IF(ISNUMBER(入力!D13),入力!I15,"") -> 1500000 | CZ104: 円
DD105: 千円 | DP105: =IF(ISTEXT(入力!D16),入力!D16,"") -> 基本給増
DB107: 厚 | DD107: =IF(ISNUMBER(入力!D13),入力!H21,"") -> 650
DN108: =IF(ISNUMBER(入力!D21),5,"") ->  | DP108: =IF(ISNUMBER(入力!D21),"健康保険のみ月額変更","") -> 
I109: =IF(ISNUMBER(入力!D8),入力!I12,"") -> 2018-03-04 | M109: 月 | R109: =IF(ISNUMBER(入力!D12),入力!D12,"") -> 28 | V109: 日 | AA109: =IF(ISNUMBER(入力!D15),入力!D15,"") -> 1500000 | AQ109: 円 | AV109: =IF(ISNUMBER(入力!D28),入力!D28,"") ->  | BJ109: 円 | BO109: =IF(ISNUMBER(入力!D15),入力!G15,"") -> 1500000 | CE109: 円 | CG109: 16 | CJ109: =IF(ISNUMBER(入力!D25),入力!I17,"") ->  | CZ109: 円
DN111: =IF(ISNUMBER(入力!D22),6,"") ->  | DP111: =IF(ISNUMBER(入力!D22),"その他","") ->  | DU111: =IF(ISTEXT(入力!D23),入力!D23,"") -> 
DD112: 千円
A117: ２ | F117: 1 | I117: =IF(ISNUMBER(入力!D31),入力!D31,"") -> 5403 | U117: 2 | X117: =IF(ISTEXT(入力!D32),入力!D32,"") -> 大阪 花 | BP117: 3 | BR117: =IF(ISNUMBER(入力!D33),入力!D33,"") -> 1947-12-12 | CR117: 4 | CT117: =IF(ISNUMBER(入力!D36),入力!I34,"") -> 2018-03-06
DK121: 18 | DN121: =IF(ISNUMBER(入力!D45),1,"") -> 1 | DP121: =IF(ISNUMBER(入力!D45),"70歳以上被用者月額変更","") -> 70歳以上被用者月額変更
F122: 5 | I122: 健 | L122: =IF(ISNUMBER(入力!D34),入力!G51,"") -> 98 | V122: 千円 | Z122: 年 | AC122: =IF(ISNUMBER(入力!D34),入力!G53,"") -> 98 | AO122: 千円 | AS122: 6 | AU122: =IF(ISNUMBER(入力!D35),入力!D35,"") -> 2017-09-01 | BL122: 7 | BN122: =IF(ISNUMBER(入力!D36),入力!D36,"") -> 2017-12-01 | BS122: 月 | BU122: =IF(ISNUMBER(入力!D37),入力!I36,"") -> 2.降給 | CG122: 8 | CI122: =IF(ISNUMBER(入力!D52),入力!D52,"") ->  | CN122: 月 | CP122: =IF(ISNUMBER(入力!D53),入力!D53,"") ->  | DI122: 円
DN124: =IF(ISNUMBER(入力!D47),2,"") ->  | DP124: =IF(ISNUMBER(入力!D47),"二以上勤務","") -> 
F127: 9 | I127: =IF(ISNUMBER(入力!D36),入力!I38,"") -> 2017-12-01 | M127: 月 | O127: 10 | R127: =IF(ISNUMBER(入力!D38),入力!D38,"") -> 30 | V127: 日 | X127: 11 | AA127: =IF(ISNUMBER(入力!D41),入力!D41,"") -> 50000 | AQ127: 円 | AS127: 12 | AV127: =IF(ISNUMBER(入力!D54),入力!D54,"") ->  | BJ127: 円 | BL127: 13 | BO127: =IF(ISNUMBER(入力!D41),入力!G41,"") -> 50000 | CE127: 円 | CG127: 14 | CJ127: =IF(ISNUMBER(入力!D41),入力!I42,"") -> 150000 | CZ127: 円 | DB127: 健 | DD127: =IF(ISNUMBER(入力!D41),入力!H48,"") -> 58 | DN127: =IF(ISNUMBER(入力!D48),3,"") ->  | DP127: =IF(ISNUMBER(入力!D48),"短時間労働者(特定適用事業所","") -> 
DN130: 4 | DP130: 昇給・降給の理由
I132: =IF(ISNUMBER(入力!D36),入力!I39,"") -> 2018-01-01 | M132: 月 | R132: =IF(ISNUMBER(入力!D39),入力!D39,"") -> 31 | V132: 日 | AA132: =IF(ISNUMBER(入力!D42),入力!D42,"") -> 50000 | AQ132: 円 | AV132: =IF(ISNUMBER(入力!D55),入力!D55,"") ->  | BJ132: 円 | BO132: =IF(ISNUMBER(入力!D42),入力!G42,"") -> 50000 | CE132: 円 | CG132: 15 | CJ132: =IF(ISNUMBER(入力!D41),入力!I43,"") -> 50000 | CZ132: 円
DD133: 千円 | DP133: =IF(ISTEXT(入力!D44),入力!D44,"") -> 基本給減
DB135: 厚 | DD135: =IF(ISNUMBER(入力!D41),入力!H49,"") -> 88
DN136: =IF(ISNUMBER(入力!D49),5,"") ->  | DP136: =IF(ISNUMBER(入力!D49),"健康保険のみ月額変更","") -> 
I137: =IF(ISNUMBER(入力!D36),入力!I40,"") -> 2018-02-01 | M137: 月 | R137: =IF(ISNUMBER(入力!D40),入力!D40,"") -> 31 | V137: 日 | AA137: =IF(ISNUMBER(入力!D43),入力!D43,"") -> 50000 | AQ137: 円 | AV137: =IF(ISNUMBER(入力!D56),入力!D56,"") ->  | BJ137: 円 | BO137: =IF(ISNUMBER(入力!D43),入力!G43,"") -> 50000 | CE137: 円 | CG137: 16 | CJ137: =IF(ISNUMBER(入力!D53),入力!I45,"") ->  | CZ137: 円
DN139: =IF(ISNUMBER(入力!D50),6,"") ->  | DP139: =IF(ISNUMBER(入力!D50),"その他","") ->  | DU139: =IF(ISTEXT(入力!D51),入力!D51,"") -> 
DD140: 千円
A145: ３ | F145: 1 | I145: =IF(ISNUMBER(入力!D59),入力!D59,"") -> 5404 | U145: 2 | X145: =IF(ISTEXT(入力!D60),入力!D60,"") -> クリス ジョンソン | BP145: 3 | BR145: =IF(ISNUMBER(入力!D61),入力!D61,"") -> 1986-02-03 | CR145: 4 | CT145: =IF(ISNUMBER(入力!D64),入力!I62,"") -> 2018-05-07
DK149: 18 | DN149: =IF(ISNUMBER(入力!D73),1,"") ->  | DP149: =IF(ISNUMBER(入力!D73),"70歳以上被用者月額変更","") -> 
F150: 5 | I150: 健 | L150: =IF(ISNUMBER(入力!D62),入力!G79,"") -> 620 | V150: 千円 | Z150: 年 | AC150: =IF(ISNUMBER(入力!D62),入力!G81,"") -> 620 | AO150: 千円 | AS150: 6 | AU150: =IF(ISNUMBER(入力!D63),入力!D63,"") -> 2017-12-01 | BL150: 7 | BN150: =IF(ISNUMBER(入力!D64),入力!D64,"") -> 2018-02-01 | BS150: 月 | BU150: =IF(ISNUMBER(入力!D65),入力!I64,"") -> 1.昇給 | CG150: 8 | CI150: =IF(ISNUMBER(入力!D80),入力!D80,"") ->  | CN150: 月 | CP150: =IF(ISNUMBER(入力!D81),入力!D81,"") ->  | DI150: 円
DN152: =IF(ISNUMBER(入力!D75),2,"") ->  | DP152: =IF(ISNUMBER(入力!D75),"二以上勤務","") -> 
F155: 9 | I155: =IF(ISNUMBER(入力!D64),入力!I66,"") -> 2018-02-01 | M155: 月 | O155: 10 | R155: =IF(ISNUMBER(入力!D66),入力!D66,"") -> 31 | V155: 日 | X155: 11 | AA155: =IF(ISNUMBER(入力!D69),入力!D69,"") -> 1500000 | AQ155: 円 | AS155: 12 | AV155: =IF(ISNUMBER(入力!D82),入力!D82,"") ->  | BJ155: 円 | BL155: 13 | BO155: =IF(ISNUMBER(入力!D69),入力!G69,"") -> 1500000 | CE155: 円 | CG155: 14 | CJ155: =IF(ISNUMBER(入力!D69),入力!I70,"") -> 4500000 | CZ155: 円 | DB155: 健 | DD155: =IF(ISNUMBER(入力!D69),入力!H76,"") -> 1390 | DN155: =IF(ISNUMBER(入力!D76),3,"") ->  | DP155: =IF(ISNUMBER(入力!D76),"短時間労働者(特定適用事業所","") -> 
DN158: 4 | DP158: 昇給・降給の理由
I160: =IF(ISNUMBER(入力!D64),入力!I67,"") -> 2018-03-04 | M160: 月 | R160: =IF(ISNUMBER(入力!D67),入力!D67,"") -> 28 | V160: 日 | AA160: =IF(ISNUMBER(入力!D70),入力!D70,"") -> 1500000 | AQ160: 円 | AV160: =IF(ISNUMBER(入力!D83),入力!D83,"") ->  | BJ160: 円 | BO160: =IF(ISNUMBER(入力!D70),入力!G70,"") -> 1500000 | CE160: 円 | CG160: 15 | CJ160: =IF(ISNUMBER(入力!D69),入力!I71,"") -> 1500000 | CZ160: 円
DD161: 千円 | DP161: =IF(ISTEXT(入力!D72),入力!D72,"") -> 基本給増
DB163: 厚 | DD163: =IF(ISNUMBER(入力!D69),入力!H77,"") -> 650
DN164: =IF(ISNUMBER(入力!D77),5,"") -> 5 | DP164: =IF(ISNUMBER(入力!D77),"健康保険のみ月額変更","") -> 健康保険のみ月額変更
I165: =IF(ISNUMBER(入力!D64),入力!I68,"") -> 2018-04-04 | M165: 月 | R165: =IF(ISNUMBER(入力!D68),入力!D68,"") -> 31 | V165: 日 | AA165: =IF(ISNUMBER(入力!D71),入力!D71,"") -> 1500000 | AQ165: 円 | AV165: =IF(ISNUMBER(入力!D84),入力!D84,"") ->  | BJ165: 円 | BO165: =IF(ISNUMBER(入力!D71),入力!G71,"") -> 1500000 | CE165: 円 | CG165: 16 | CJ165: =IF(ISNUMBER(入力!D81),入力!I73,"") ->  | CZ165: 円
DN167: =IF(ISNUMBER(入力!D78),6,"") ->  | DP167: =IF(ISNUMBER(入力!D78),"その他","") ->  | DU167: =IF(ISTEXT(入力!D79),入力!D79,"") -> 
DD168: 千円
A173: ４ | F173: 1 | I173: =IF(ISNUMBER(入力!D87),入力!D87,"") -> 5405 | U173: 2 | X173: =IF(ISTEXT(入力!D88),入力!D88,"") -> ブラッド エルドレッド | BP173: 3 | BR173: =IF(ISNUMBER(入力!D89),入力!D89,"") -> 1981-04-08 | CR173: 4 | CT173: =IF(ISNUMBER(入力!D92),入力!I90,"") -> 2018-05-07
DK177: 18 | DN177: =IF(ISNUMBER(入力!D101),1,"") ->  | DP177: =IF(ISNUMBER(入力!D101),"70歳以上被用者月額変更","") -> 
F178: 5 | I178: 健 | L178: =IF(ISNUMBER(入力!D90),入力!G107,"") -> 300 | V178: 千円 | Z178: 年 | AC178: =IF(ISNUMBER(入力!D90),入力!G109,"") -> 300 | AO178: 千円 | AS178: 6 | AU178: =IF(ISNUMBER(入力!D91),入力!D91,"") -> 2018-01-01 | BL178: 7 | BN178: =IF(ISNUMBER(入力!D92),入力!D92,"") -> 2018-02-01 | BS178: 月 | BU178: =IF(ISNUMBER(入力!D93),入力!I92,"") -> 1.昇給 | CG178: 8 | CI178: =IF(ISNUMBER(入力!D108),入力!D108,"") -> 2018-02-01 | CN178: 月 | CP178: =IF(ISNUMBER(入力!D109),入力!D109,"") -> 20000 | DI178: 円
DN180: =IF(ISNUMBER(入力!D103),2,"") -> 2 | DP180: =IF(ISNUMBER(入力!D103),"二以上勤務","") -> 二以上勤務
F183: 9 | I183: =IF(ISNUMBER(入力!D92),入力!I94,"") -> 2018-02-01 | M183: 月 | O183: 10 | R183: =IF(ISNUMBER(入力!D94),入力!D94,"") -> 31 | V183: 日 | X183: 11 | AA183: =IF(ISNUMBER(入力!D97),入力!D97,"") -> 820000 | AQ183: 円 | AS183: 12 | AV183: =IF(ISNUMBER(入力!D110),入力!D110,"") ->  | BJ183: 円 | BL183: 13 | BO183: =IF(ISNUMBER(入力!D97),入力!G97,"") -> 820000 | CE183: 円 | CG183: 14 | CJ183: =IF(ISNUMBER(入力!D97),入力!I98,"") -> 2420000 | CZ183: 円 | DB183: 健 | DD183: =IF(ISNUMBER(入力!D97),入力!H104,"") -> 790 | DN183: =IF(ISNUMBER(入力!D104),3,"") ->  | DP183: =IF(ISNUMBER(入力!D104),"短時間労働者(特定適用事業所","") -> 
DN186: 4 | DP186: 昇給・降給の理由
I188: =IF(ISNUMBER(入力!D92),入力!I95,"") -> 2018-03-04 | M188: 月 | R188: =IF(ISNUMBER(入力!D95),入力!D95,"") -> 28 | V188: 日 | AA188: =IF(ISNUMBER(入力!D98),入力!D98,"") -> 800000 | AQ188: 円 | AV188: =IF(ISNUMBER(入力!D111),入力!D111,"") ->  | BJ188: 円 | BO188: =IF(ISNUMBER(入力!D98),入力!G98,"") -> 800000 | CE188: 円 | CG188: 15 | CJ188: =IF(ISNUMBER(入力!D97),入力!I99,"") -> 806666 | CZ188: 円
DD189: 千円 | DP189: =IF(ISTEXT(入力!D100),入力!D100,"") -> 
DB191: 厚 | DD191: =IF(ISNUMBER(入力!D97),入力!H105,"") -> 650
DN192: =IF(ISNUMBER(入力!D105),5,"") ->  | DP192: =IF(ISNUMBER(入力!D105),"健康保険のみ月額変更","") -> 
I193: =IF(ISNUMBER(入力!D92),入力!I96,"") -> 2018-04-04 | M193: 月 | R193: =IF(ISNUMBER(入力!D96),入力!D96,"") -> 31 | V193: 日 | AA193: =IF(ISNUMBER(入力!D99),入力!D99,"") -> 800000 | AQ193: 円 | AV193: =IF(ISNUMBER(入力!D112),入力!D112,"") ->  | BJ193: 円 | BO193: =IF(ISNUMBER(入力!D99),入力!G99,"") -> 800000 | CE193: 円 | CG193: 16 | CJ193: =IF(ISNUMBER(入力!D109),入力!I101,"") -> 800000 | CZ193: 円
DN195: =IF(ISNUMBER(入力!D106),6,"") ->  | DP195: =IF(ISNUMBER(入力!D106),"その他","") ->  | DU195: =IF(ISTEXT(入力!D107),入力!D107,"") -> 
DD196: 千円
A201: ５ | F201: 1 | I201: =IF(ISNUMBER(入力!D115),入力!D115,"") -> 5406 | U201: 2 | X201: =IF(ISTEXT(入力!D116),入力!D116,"") -> ジェイ ジャクソン | BP201: 3 | BR201: =IF(ISNUMBER(入力!D117),入力!D117,"") -> 1993-07-26 | CR201: 4 | CT201: =IF(ISNUMBER(入力!D120),入力!I118,"") -> 2018-06-04
DK205: 18 | DN205: =IF(ISNUMBER(入力!D129),1,"") ->  | DP205: =IF(ISNUMBER(入力!D129),"70歳以上被用者月額変更","") -> 
F206: 5 | I206: 健 | L206: =IF(ISNUMBER(入力!D118),入力!G135,"") -> 58 | V206: 千円 | Z206: 年 | AC206: =IF(ISNUMBER(入力!D118),入力!G137,"") -> 88 | AO206: 千円 | AS206: 6 | AU206: =IF(ISNUMBER(入力!D119),入力!D119,"") -> 2017-11-01 | BL206: 7 | BN206: =IF(ISNUMBER(入力!D120),入力!D120,"") -> 2018-03-01 | BS206: 月 | BU206: =IF(ISNUMBER(入力!D121),入力!I120,"") -> 1.昇給 | CG206: 8 | CI206: =IF(ISNUMBER(入力!D136),入力!D136,"") ->  | CN206: 月 | CP206: =IF(ISNUMBER(入力!D137),入力!D137,"") ->  | DI206: 円
DN208: =IF(ISNUMBER(入力!D131),2,"") ->  | DP208: =IF(ISNUMBER(入力!D131),"二以上勤務","") -> 
F211: 9 | I211: =IF(ISNUMBER(入力!D120),入力!I122,"") -> 2018-03-01 | M211: 月 | O211: 10 | R211: =IF(ISNUMBER(入力!D122),入力!D122,"") -> 28 | V211: 日 | X211: 11 | AA211: =IF(ISNUMBER(入力!D125),入力!D125,"") -> 2000000 | AQ211: 円 | AS211: 12 | AV211: =IF(ISNUMBER(入力!D138),入力!D138,"") -> 50000 | BJ211: 円 | BL211: 13 | BO211: =IF(ISNUMBER(入力!D125),入力!G125,"") -> 2050000 | CE211: 円 | CG211: 14 | CJ211: =IF(ISNUMBER(入力!D125),入力!I126,"") -> 6150000 | CZ211: 円 | DB211: 健 | DD211: =IF(ISNUMBER(入力!D125),入力!H132,"") -> 1390 | DN211: =IF(ISNUMBER(入力!D132),3,"") -> 3 | DP211: =IF(ISNUMBER(入力!D132),"短時間労働者(特定適用事業所","") -> 短時間労働者(特定適用事業所
DN214: 4 | DP214: 昇給・降給の理由
I216: =IF(ISNUMBER(入力!D120),入力!I123,"") -> 2018-04-01 | M216: 月 | R216: =IF(ISNUMBER(入力!D123),入力!D123,"") -> 31 | V216: 日 | AA216: =IF(ISNUMBER(入力!D126),入力!D126,"") -> 2000000 | AQ216: 円 | AV216: =IF(ISNUMBER(入力!D139),入力!D139,"") -> 50000 | BJ216: 円 | BO216: =IF(ISNUMBER(入力!D126),入力!G126,"") -> 2050000 | CE216: 円 | CG216: 15 | CJ216: =IF(ISNUMBER(入力!D125),入力!I127,"") -> 2050000 | CZ216: 円
DD217: 千円 | DP217: =IF(ISTEXT(入力!D128),入力!D128,"") -> 役員就任
DB219: 厚 | DD219: =IF(ISNUMBER(入力!D125),入力!H133,"") -> 650
DN220: =IF(ISNUMBER(入力!D133),5,"") ->  | DP220: =IF(ISNUMBER(入力!D133),"健康保険のみ月額変更","") -> 
I221: =IF(ISNUMBER(入力!D120),入力!I124,"") -> 2018-05-02 | M221: 月 | R221: =IF(ISNUMBER(入力!D124),入力!D124,"") -> 30 | V221: 日 | AA221: =IF(ISNUMBER(入力!D127),入力!D127,"") -> 2000000 | AQ221: 円 | AV221: =IF(ISNUMBER(入力!D140),入力!D140,"") -> 50000 | BJ221: 円 | BO221: =IF(ISNUMBER(入力!D127),入力!G127,"") -> 2050000 | CE221: 円 | CG221: 16 | CJ221: =IF(ISNUMBER(入力!D137),入力!I129,"") ->  | CZ221: 円
DN223: =IF(ISNUMBER(入力!D134),6,"") -> 6 | DP223: =IF(ISNUMBER(入力!D134),"その他","") -> その他 | DU223: =IF(ISTEXT(入力!D135),入力!D135,"") -> 短時間役員
DD224: 千円
DA228: 大阪自動車整備健康保険組合

Sheet 健保副
O2: 健康保険 被保険者標準報酬改定通知書
A10: =基本情報登録!C2 -> 2021-04-22
A16: 提出者記入欄 | F16: 記号 | Q16: =基本情報登録!C6 -> 532
Q24: 〒 | T24: =基本情報登録!C7 -> 542-0066
F26: 事業所 所在地
Q27: =基本情報登録!C8 -> 大阪府大阪市中央区瓦屋町2-3-1 | BY27: 下記のとおり標準報酬を改定されたので通知します。
F35: 事業所 名称 | Q35: =基本情報登録!C9 -> 大阪自動車整備健康保険組合
BY40: 大阪自動車整備健康保険組合理事長
F42: 事業主 氏名 | Q42: =基本情報登録!C10 -> 理事長 健保 太郎 | BK42: 様
F49: 電話番号 | Q49: =基本情報登録!C11 -> 06-6762-6371
A69: 項目名 | F69: 1保険証番号 | U69: 2被保険者氏名 | BP69: 3生年月日 | CR69: 4改定年月 | DK69: 10個人番号(基礎年金番号)
F73: 5従前の標準報酬月額 | AS73: 6従前改定月 | BL73: 7昇(降)給 | CG73: 8遡及支払額 | DK73: 18備考
F77: 9給与 支払月 | O77: 10給料計算の基礎日数 | X77: 報酬月額 | CG77: 14総計 | DB77: 決定後標準報酬月額
CG80: 15平均額
X81: 11通貨によるものの額 | AS81: 12現物によるものの額 | BL81: 13合計11+12
CG83: 16修正平均額
A89: １ | F89: 1 | I89: =IF(ISNUMBER(入力!D3),入力!D3,"") -> 5402 | U89: 2 | X89: =IF(ISTEXT(入力!D4),入力!D4,"") -> 大阪健保 整太郎 | BP89: 3 | BR89: =IF(ISNUMBER(入力!D5),入力!D5,"") -> 1946-10-10 | CR89: 4 | CT89: =IF(ISNUMBER(入力!D8),入力!I6,"") -> 2018-04-06
DK93: 18 | DN93: =IF(ISNUMBER(入力!D17),1,"") -> 1 | DP93: =IF(ISNUMBER(入力!D17),"70歳以上被用者月額変更","") -> 70歳以上被用者月額変更
F94: 5 | I94: 健 | L94: =IF(ISNUMBER(入力!D6),入力!G23,"") -> 710 | V94: 千円 | Z94: 年 | AC94: =IF(ISNUMBER(入力!D6),入力!G25,"") -> 650 | AO94: 千円 | AS94: 6 | AU94: =IF(ISNUMBER(入力!D7),入力!D7,"") -> 2017-09-01 | BL94: 7 | BN94: =IF(ISNUMBER(入力!D8),入力!D8,"") -> 2018-01-01 | BS94: 月 | BU94: =IF(ISNUMBER(入力!D9),入力!I8,"") -> 1.昇給 | CG94: 8 | CI94: =IF(ISNUMBER(入力!D24),入力!D24,"") -> 2018-01-01 | CN94: 月 | CP94: =IF(ISNUMBER(入力!D25),入力!D25,"") ->  | DI94: 円
DN96: =IF(ISNUMBER(入力!D19),2,"") ->  | DP96: =IF(ISNUMBER(入力!D19),"二以上勤務","") -> 
F99: 9 | I99: =IF(ISNUMBER(入力!D8),入力!I10,"") -> 2018-01-01 | M99: 月 | O99: 10 | R99: =IF(ISNUMBER(入力!D10),入力!D10,"") -> 31 | V99: 日 | X99: 11 | AA99: =IF(ISNUMBER(入力!D13),入力!D13,"") -> 1500000 | AQ99: 円 | AS99: 12 | AV99: =IF(ISNUMBER(入力!D26),入力!D26,"") ->  | BJ99: 円 | BL99: 13 | BO99: =IF(ISNUMBER(入力!D13),入力!G13,"") -> 1500000 | CE99: 円 | CG99: 14 | CJ99: =IF(ISNUMBER(入力!D13),入力!I14,"") -> 4500000 | CZ99: 円 | DB99: 健 | DD99: =IF(ISNUMBER(入力!D13),入力!H20,"") -> 1390 | DN99: =IF(ISNUMBER(入力!D20),3,"") ->  | DP99: =IF(ISNUMBER(入力!D20),"短時間労働者(特定適用事業所","") -> 
DN102: 4 | DP102: 昇給・降給の理由
I104: =IF(ISNUMBER(入力!D5),入力!I11,"") -> 2018-02-01 | M104: 月 | R104: =IF(ISNUMBER(入力!D11),入力!D11,"") -> 31 | V104: 日 | AA104: =IF(ISNUMBER(入力!D14),入力!D14,"") -> 1500000 | AQ104: 円 | AV104: =IF(ISNUMBER(入力!D27),入力!D27,"") ->  | BJ104: 円 | BO104: =IF(ISNUMBER(入力!D14),入力!G14,"") -> 1500000 | CE104: 円 | CG104: 15 | CJ104: =IF(ISNUMBER(入力!D13),入力!I15,"") -> 1500000 | CZ104: 円
DD105: 千円 | DP105: =IF(ISTEXT(入力!D16),入力!D16,"") -> 基本給増
DB107: 厚 | DD107: =IF(ISNUMBER(入力!D13),入力!H21,"") -> 650
DN108: =IF(ISNUMBER(入力!D21),5,"") ->  | DP108: =IF(ISNUMBER(入力!D21),"健康保険のみ月額変更","") -> 
I109: =IF(ISNUMBER(入力!D8),入力!I12,"") -> 2018-03-04 | M109: 月 | R109: =IF(ISNUMBER(入力!D12),入力!D12,"") -> 28 | V109: 日 | AA109: =IF(ISNUMBER(入力!D15),入力!D15,"") -> 1500000 | AQ109: 円 | AV109: =IF(ISNUMBER(入力!D28),入力!D28,"") ->  | BJ109: 円 | BO109: =IF(ISNUMBER(入力!D15),入力!G15,"") -> 1500000 | CE109: 円 | CG109: 16 | CJ109: =IF(ISNUMBER(入力!D25),入力!I17,"") ->  | CZ109: 円
DN111: =IF(ISNUMBER(入力!D22),6,"") ->  | DP111: =IF(ISNUMBER(入力!D22),"その他","") ->  | DU111: =IF(ISTEXT(入力!D23),入力!D23,"") -> 
DD112: 千円
A117: ２ | F117: 1 | I117: =IF(ISNUMBER(入力!D31),入力!D31,"") -> 5403 | U117: 2 | X117: =IF(ISTEXT(入力!D32),入力!D32,"") -> 大阪 花 | BP117: 3 | BR117: =IF(ISNUMBER(入力!D33),入力!D33,"") -> 1947-12-12 | CR117: 4 | CT117: =IF(ISNUMBER(入力!D36),入力!I34,"") -> 2018-03-06
DK121: 18 | DN121: =IF(ISNUMBER(入力!D45),1,"") -> 1 | DP121: =IF(ISNUMBER(入力!D45),"70歳以上被用者月額変更","") -> 70歳以上被用者月額変更
F122: 5 | I122: 健 | L122: =IF(ISNUMBER(入力!D34),入力!G51,"") -> 98 | V122: 千円 | Z122: 年 | AC122: =IF(ISNUMBER(入力!D34),入力!G53,"") -> 98 | AO122: 千円 | AS122: 6 | AU122: =IF(ISNUMBER(入力!D35),入力!D35,"") -> 2017-09-01 | BL122: 7 | BN122: =IF(ISNUMBER(入力!D36),入力!D36,"") -> 2017-12-01 | BS122: 月 | BU122: =IF(ISNUMBER(入力!D37),入力!I36,"") -> 2.降給 | CG122: 8 | CI122: =IF(ISNUMBER(入力!D52),入力!D52,"") ->  | CN122: 月 | CP122: =IF(ISNUMBER(入力!D53),入力!D53,"") ->  | DI122: 円
DN124: =IF(ISNUMBER(入力!D47),2,"") ->  | DP124: =IF(ISNUMBER(入力!D47),"二以上勤務","") -> 
F127: 9 | I127: =IF(ISNUMBER(入力!D36),入力!I38,"") -> 2017-12-01 | M127: 月 | O127: 10 | R127: =IF(ISNUMBER(入力!D38),入力!D38,"") -> 30 | V127: 日 | X127: 11 | AA127: =IF(ISNUMBER(入力!D41),入力!D41,"") -> 50000 | AQ127: 円 | AS127: 12 | AV127: =IF(ISNUMBER(入力!D54),入力!D54,"") ->  | BJ127: 円 | BL127: 13 | BO127: =IF(ISNUMBER(入力!D41),入力!G41,"") -> 50000 | CE127: 円 | CG127: 14 | CJ127: =IF(ISNUMBER(入力!D41),入力!I42,"") -> 150000 | CZ127: 円 | DB127: 健 | DD127: =IF(ISNUMBER(入力!D41),入力!H48,"") -> 58 | DN127: =IF(ISNUMBER(入力!D48),3,"") ->  | DP127: =IF(ISNUMBER(入力!D48),"短時間労働者(特定適用事業所","") -> 
DN130: 4 | DP130: 昇給・降給の理由
I132: =IF(ISNUMBER(入力!D33),入力!I39,"") -> 2018-01-01 | M132: 月 | R132: =IF(ISNUMBER(入力!D39),入力!D39,"") -> 31 | V132: 日 | AA132: =IF(ISNUMBER(入力!D42),入力!D42,"") -> 50000 | AQ132: 円 | AV132: =IF(ISNUMBER(入力!D55),入力!D55,"") ->  | BJ132: 円 | BO132: =IF(ISNUMBER(入力!D42),入力!G42,"") -> 50000 | CE132: 円 | CG132: 15 | CJ132: =IF(ISNUMBER(入力!D41),入力!I43,"") -> 50000 | CZ132: 円
DD133: 千円 | DP133: =IF(ISTEXT(入力!D44),入力!D44,"") -> 基本給減
DB135: 厚 | DD135: =IF(ISNUMBER(入力!D41),入力!H49,"") -> 88
DN136: =IF(ISNUMBER(入力!D49),5,"") ->  | DP136: =IF(ISNUMBER(入力!D49),"健康保険のみ月額変更","") -> 
I137: =IF(ISNUMBER(入力!D36),入力!I40,"") -> 2018-02-01 | M137: 月 | R137: =IF(ISNUMBER(入力!D40),入力!D40,"") -> 31 | V137: 日 | AA137: =IF(ISNUMBER(入力!D43),入力!D43,"") -> 50000 | AQ137: 円 | AV137: =IF(ISNUMBER(入力!D56),入力!D56,"") ->  | BJ137: 円 | BO137: =IF(ISNUMBER(入力!D43),入力!G43,"") -> 50000 | CE137: 円 | CG137: 16 | CJ137: =IF(ISNUMBER(入力!D53),入力!I45,"") ->  | CZ137: 円
DN139: =IF(ISNUMBER(入力!D50),6,"") ->  | DP139: =IF(ISNUMBER(入力!D50),"その他","") ->  | DU139: =IF(ISTEXT(入力!D51),入力!D51,"") -> 
DD140: 千円
A145: ３ | F145: 1 | I145: =IF(ISNUMBER(入力!D59),入力!D59,"") -> 5404 | U145: 2 | X145: =IF(ISTEXT(入力!D60),入力!D60,"") -> クリス ジョンソン | BP145: 3 | BR145: =IF(ISNUMBER(入力!D61),入力!D61,"") -> 1986-02-03 | CR145: 4 | CT145: =IF(ISNUMBER(入力!D64),入力!I62,"") -> 2018-05-07
DK149: 18 | DN149: =IF(ISNUMBER(入力!D73),1,"") ->  | DP149: =IF(ISNUMBER(入力!D73),"70歳以上被用者月額変更","") -> 
F150: 5 | I150: 健 | L150: =IF(ISNUMBER(入力!D62),入力!G79,"") -> 620 | V150: 千円 | Z150: 年 | AC150: =IF(ISNUMBER(入力!D62),入力!G81,"") -> 620 | AO150: 千円 | AS150: 6 | AU150: =IF(ISNUMBER(入力!D63),入力!D63,"") -> 2017-12-01 | BL150: 7 | BN150: =IF(ISNUMBER(入力!D64),入力!D64,"") -> 2018-02-01 | BS150: 月 | BU150: =IF(ISNUMBER(入力!D65),入力!I64,"") -> 1.昇給 | CG150: 8 | CI150: =IF(ISNUMBER(入力!D80),入力!D80,"") ->  | CN150: 月 | CP150: =IF(ISNUMBER(入力!D81),入力!D81,"") ->  | DI150: 円
DN152: =IF(ISNUMBER(入力!D75),2,"") ->  | DP152: =IF(ISNUMBER(入力!D75),"二以上勤務","") -> 
F155: 9 | I155: =IF(ISNUMBER(入力!D64),入力!I66,"") -> 2018-02-01 | M155: 月 | O155: 10 | R155: =IF(ISNUMBER(入力!D66),入力!D66,"") -> 31 | V155: 日 | X155: 11 | AA155: =IF(ISNUMBER(入力!D69),入力!D69,"") -> 1500000 | AQ155: 円 | AS155: 12 | AV155: =IF(ISNUMBER(入力!D82),入力!D82,"") ->  | BJ155: 円 | BL155: 13 | BO155: =IF(ISNUMBER(入力!D69),入力!G69,"") -> 1500000 | CE155: 円 | CG155: 14 | CJ155: =IF(ISNUMBER(入力!D69),入力!I70,"") -> 4500000 | CZ155: 円 | DB155: 健 | DD155: =IF(ISNUMBER(入力!D69),入力!H76,"") -> 1390 | DN155: =IF(ISNUMBER(入力!D76),3,"") ->  | DP155: =IF(ISNUMBER(入力!D76),"短時間労働者(特定適用事業所","") -> 
DN158: 4 | DP158: 昇給・降給の理由
I160: =IF(ISNUMBER(入力!D61),入力!I67,"") -> 2018-03-04 | M160: 月 | R160: =IF(ISNUMBER(入力!D67),入力!D67,"") -> 28 | V160: 日 | AA160: =IF(ISNUMBER(入力!D70),入力!D70,"") -> 1500000 | AQ160: 円 | AV160: =IF(ISNUMBER(入力!D83),入力!D83,"") ->  | BJ160: 円 | BO160: =IF(ISNUMBER(入力!D70),入力!G70,"") -> 1500000 | CE160: 円 | CG160: 15 | CJ160: =IF(ISNUMBER(入力!D69),入力!I71,"") -> 1500000 | CZ160: 円
DD161: 千円 | DP161: =IF(ISTEXT(入力!D72),入力!D72,"") -> 基本給増
DB163: 厚 | DD163: =IF(ISNUMBER(入力!D69),入力!H77,"") -> 650
DN164: =IF(ISNUMBER(入力!D77),5,"") -> 5 | DP164: =IF(ISNUMBER(入力!D77),"健康保険のみ月額変更","") -> 健康保険のみ月額変更
I165: =IF(ISNUMBER(入力!D64),入力!I68,"") -> 2018-04-04 | M165: 月 | R165: =IF(ISNUMBER(入力!D68),入力!D68,"") -> 31 | V165: 日 | AA165: =IF(ISNUMBER(入力!D71),入力!D71,"") -> 1500000 | AQ165: 円 | AV165: =IF(ISNUMBER(入力!D84),入力!D84,"") ->  | BJ165: 円 | BO165: =IF(ISNUMBER(入力!D71),入力!G71,"") -> 1500000 | CE165: 円 | CG165: 16 | CJ165: =IF(ISNUMBER(入力!D81),入力!I73,"") ->  | CZ165: 円
DN167: =IF(ISNUMBER(入力!D78),6,"") ->  | DP167: =IF(ISNUMBER(入力!D78),"その他","") ->  | DU167: =IF(ISTEXT(入力!D79),入力!D79,"") -> 
DD168: 千円
A173: ４ | F173: 1 | I173: =IF(ISNUMBER(入力!D87),入力!D87,"") -> 5405 | U173: 2 | X173: =IF(ISTEXT(入力!D88),入力!D88,"") -> ブラッド エルドレッド | BP173: 3 | BR173: =IF(ISNUMBER(入力!D89),入力!D89,"") -> 1981-04-08 | CR173: 4 | CT173: =IF(ISNUMBER(入力!D92),入力!I90,"") -> 2018-05-07
DK177: 18 | DN177: =IF(ISNUMBER(入力!D101),1,"") ->  | DP177: =IF(ISNUMBER(入力!D101),"70歳以上被用者月額変更","") -> 
F178: 5 | I178: 健 | L178: =IF(ISNUMBER(入力!D90),入力!G107,"") -> 300 | V178: 千円 | Z178: 年 | AC178: =IF(ISNUMBER(入力!D90),入力!G109,"") -> 300 | AO178: 千円 | AS178: 6 | AU178: =IF(ISNUMBER(入力!D91),入力!D91,"") -> 2018-01-01 | BL178: 7 | BN178: =IF(ISNUMBER(入力!D92),入力!D92,"") -> 2018-02-01 | BS178: 月 | BU178: =IF(ISNUMBER(入力!D93),入力!I92,"") -> 1.昇給 | CG178: 8 | CI178: =IF(ISNUMBER(入力!D108),入力!D108,"") -> 2018-02-01 | CN178: 月 | CP178: =IF(ISNUMBER(入力!D109),入力!D109,"") -> 20000 | DI178: 円
DN180: =IF(ISNUMBER(入力!D103),2,"") -> 2 | DP180: =IF(ISNUMBER(入力!D103),"二以上勤務","") -> 二以上勤務
F183: 9 | I183: =IF(ISNUMBER(入力!D92),入力!I94,"") -> 2018-02-01 | M183: 月 | O183: 10 | R183: =IF(ISNUMBER(入力!D94),入力!D94,"") -> 31 | V183: 日 | X183: 11 | AA183: =IF(ISNUMBER(入力!D97),入力!D97,"") -> 820000 | AQ183: 円 | AS183: 12 | AV183: =IF(ISNUMBER(入力!D110),入力!D110,"") ->  | BJ183: 円 | BL183: 13 | BO183: =IF(ISNUMBER(入力!D97),入力!G97,"") -> 820000 | CE183: 円 | CG183: 14 | CJ183: =IF(ISNUMBER(入力!D97),入力!I98,"") -> 2420000 | CZ183: 円 | DB183: 健 | DD183: =IF(ISNUMBER(入力!D97),入力!H104,"") -> 790 | DN183: =IF(ISNUMBER(入力!D104),3,"") ->  | DP183: =IF(ISNUMBER(入力!D104),"短時間労働者(特定適用事業所","") -> 
DN186: 4 | DP186: 昇給・降給の理由
I188: =IF(ISNUMBER(入力!D89),入力!I95,"") -> 2018-03-04 | M188: 月 | R188: =IF(ISNUMBER(入力!D95),入力!D95,"") -> 28 | V188: 日 | AA188: =IF(ISNUMBER(入力!D98),入力!D98,"") -> 800000 | AQ188: 円 | AV188: =IF(ISNUMBER(入力!D111),入力!D111,"") ->  | BJ188: 円 | BO188: =IF(ISNUMBER(入力!D98),入力!G98,"") -> 800000 | CE188: 円 | CG188: 15 | CJ188: =IF(ISNUMBER(入力!D97),入力!I99,"") -> 806666 | CZ188: 円
DD189: 千円 | DP189: =IF(ISTEXT(入力!D100),入力!D100,"") -> 
DB191: 厚 | DD191: =IF(ISNUMBER(入力!D97),入力!H105,"") -> 650
DN192: =IF(ISNUMBER(入力!D105),5,"") ->  | DP192: =IF(ISNUMBER(入力!D105),"健康保険のみ月額変更","") -> 
I193: =IF(ISNUMBER(入力!D92),入力!I96,"") -> 2018-04-04 | M193: 月 | R193: =IF(ISNUMBER(入力!D96),入力!D96,"") -> 31 | V193: 日 | AA193: =IF(ISNUMBER(入力!D99),入力!D99,"") -> 800000 | AQ193: 円 | AV193: =IF(ISNUMBER(入力!D112),入力!D112,"") ->  | BJ193: 円 | BO193: =IF(ISNUMBER(入力!D99),入力!G99,"") -> 800000 | CE193: 円 | CG193: 16 | CJ193: =IF(ISNUMBER(入力!D109),入力!I101,"") -> 800000 | CZ193: 円
DN195: =IF(ISNUMBER(入力!D106),6,"") ->  | DP195: =IF(ISNUMBER(入力!D106),"その他","") ->  | DU195: =IF(ISTEXT(入力!D107),入力!D107,"") -> 
DD196: 千円
A201: ５ | F201: 1 | I201: =IF(ISNUMBER(入力!D115),入力!D115,"") -> 5406 | U201: 2 | X201: =IF(ISTEXT(入力!D116),入力!D116,"") -> ジェイ ジャクソン | BP201: 3 | BR201: =IF(ISNUMBER(入力!D117),入力!D117,"") -> 1993-07-26 | CR201: 4 | CT201: =IF(ISNUMBER(入力!D120),入力!I118,"") -> 2018-06-04
DK205: 18 | DN205: =IF(ISNUMBER(入力!D129),1,"") ->  | DP205: =IF(ISNUMBER(入力!D129),"70歳以上被用者月額変更","") -> 
F206: 5 | I206: 健 | L206: =IF(ISNUMBER(入力!D118),入力!G135,"") -> 58 | V206: 千円 | Z206: 年 | AC206: =IF(ISNUMBER(入力!D118),入力!G137,"") -> 88 | AO206: 千円 | AS206: 6 | AU206: =IF(ISNUMBER(入力!D119),入力!D119,"") -> 2017-11-01 | BL206: 7 | BN206: =IF(ISNUMBER(入力!D120),入力!D120,"") -> 2018-03-01 | BS206: 月 | BU206: =IF(ISNUMBER(入力!D121),入力!I120,"") -> 1.昇給 | CG206: 8 | CI206: =IF(ISNUMBER(入力!D136),入力!D136,"") ->  | CN206: 月 | CP206: =IF(ISNUMBER(入力!D137),入力!D137,"") ->  | DI206: 円
DN208: =IF(ISNUMBER(入力!D131),2,"") ->  | DP208: =IF(ISNUMBER(入力!D131),"二以上勤務","") -> 
F211: 9 | I211: =IF(ISNUMBER(入力!D120),入力!I122,"") -> 2018-03-01 | M211: 月 | O211: 10 | R211: =IF(ISNUMBER(入力!D122),入力!D122,"") -> 28 | V211: 日 | X211: 11 | AA211: =IF(ISNUMBER(入力!D125),入力!D125,"") -> 2000000 | AQ211: 円 | AS211: 12 | AV211: =IF(ISNUMBER(入力!D138),入力!D138,"") -> 50000 | BJ211: 円 | BL211: 13 | BO211: =IF(ISNUMBER(入力!D125),入力!G125,"") -> 2050000 | CE211: 円 | CG211: 14 | CJ211: =IF(ISNUMBER(入力!D125),入力!I126,"") -> 6150000 | CZ211: 円 | DB211: 健 | DD211: =IF(ISNUMBER(入力!D125),入力!H132,"") -> 1390 | DN211: =IF(ISNUMBER(入力!D132),3,"") -> 3 | DP211: =IF(ISNUMBER(入力!D132),"短時間労働者(特定適用事業所","") -> 短時間労働者(特定適用事業所
DN214: 4 | DP214: 昇給・降給の理由
I216: =IF(ISNUMBER(入力!D117),入力!I123,"") -> 2018-04-01 | M216: 月 | R216: =IF(ISNUMBER(入力!D123),入力!D123,"") -> 31 | V216: 日 | AA216: =IF(ISNUMBER(入力!D126),入力!D126,"") -> 2000000 | AQ216: 円 | AV216: =IF(ISNUMBER(入力!D139),入力!D139,"") -> 50000 | BJ216: 円 | BO216: =IF(ISNUMBER(入力!D126),入力!G126,"") -> 2050000 | CE216: 円 | CG216: 15 | CJ216: =IF(ISNUMBER(入力!D125),入力!I127,"") -> 2050000 | CZ216: 円
DD217: 千円 | DP217: =IF(ISTEXT(入力!D128),入力!D128,"") -> 役員就任
DB219: 厚 | DD219: =IF(ISNUMBER(入力!D125),入力!H133,"") -> 650
DN220: =IF(ISNUMBER(入力!D133),5,"") ->  | DP220: =IF(ISNUMBER(入力!D133),"健康保険のみ月額変更","") -> 
I221: =IF(ISNUMBER(入力!D120),入力!I124,"") -> 2018-05-02 | M221: 月 | R221: =IF(ISNUMBER(入力!D124),入力!D124,"") -> 30 | V221: 日 | AA221: =IF(ISNUMBER(入力!D127),入力!D127,"") -> 2000000 | AQ221: 円 | AV221: =IF(ISNUMBER(入力!D140),入力!D140,"") -> 50000 | BJ221: 円 | BO221: =IF(ISNUMBER(入力!D127),入力!G127,"") -> 2050000 | CE221: 円 | CG221: 16 | CJ221: =IF(ISNUMBER(入力!D137),入力!I129,"") ->  | CZ221: 円
DN223: =IF(ISNUMBER(入力!D134),6,"") -> 6 | DP223: =IF(ISNUMBER(入力!D134),"その他","") -> その他 | DU223: =IF(ISTEXT(入力!D135),入力!D135,"") -> 短時間役員
DD224: 千円
DA228: 大阪自動車整備健康保険組合

Sheet 年金正
O2: 厚生年金保険 被保険者報酬月額変更届
A10: =基本情報登録!C2 -> 2021-04-22
A16: 提出者記入欄 | F16: 記号 | Q16: =基本情報登録!C3 -> 南 | Y16: =基本情報登録!C4 -> ＷＥＤ
Q21: 届書記入の個人番号(基礎年金番号)に誤りがないことを確認しました。 | DB21: 受付印
Q24: 〒 | T24: =基本情報登録!C7 -> 542-0066
F26: 事業所 所在地
Q27: =基本情報登録!C8 -> 大阪府大阪市中央区瓦屋町2-3-1
F35: 事業所 名称 | Q35: =基本情報登録!C9 -> 大阪自動車整備健康保険組合
F42: 事業主 氏名 | Q42: =基本情報登録!C10 -> 理事長 健保 太郎
F49: 電話番号 | Q49: =基本情報登録!C11 -> 06-6762-6371
BT51: 社会保険労務士記載欄
A69: 項目名 | F69: 1年金整理番号 | U69: 2被保険者氏名 | BP69: 3生年月日 | CR69: 4改定年月 | DK69: 10個人番号(基礎年金番号)
F73: 5従前の標準報酬月額 | AS73: 6従前改定月 | BL73: 7昇(降)給 | CG73: 8遡及支払額 | DK73: 18備考
F77: 9給与 支払月 | O77: 10給料計算の基礎日数 | X77: 報酬月額 | CG77: 14総計
CG80: 15平均額
X81: 11通貨によるものの額 | AS81: 12現物によるものの額 | BL81: 13合計11+12
CG83: 16修正平均額
A89: １ | F89: 1 | I89: =IF(ISNUMBER(入力!D3),入力!G10,"") -> 5555 | U89: 2 | X89: =IF(ISTEXT(入力!D4),入力!D4,"") -> 大阪健保 整太郎 | BP89: 3 | BR89: =IF(ISNUMBER(入力!D5),入力!D5,"") -> 1946-10-10 | CR89: 4 | CT89: =IF(ISNUMBER(入力!D8),入力!I6,"") -> 2018-04-06 | DK89: =IF(ISNUMBER(入力!D17),入力!D18,"") -> 123456789012
DK93: 18 | DN93: =IF(ISNUMBER(入力!D17),1,"") -> 1 | DP93: =IF(ISNUMBER(入力!D17),"70歳以上被用者月額変更","") -> 70歳以上被用者月額変更
F94: 5 | I94: 健 | L94: =IF(ISNUMBER(入力!D6),入力!G23,"") -> 710 | V94: 千円 | Z94: 年 | AC94: =IF(ISNUMBER(入力!D6),入力!G25,"") -> 650 | AO94: 千円 | AS94: 6 | AU94: =IF(ISNUMBER(入力!D7),入力!D7,"") -> 2017-09-01 | BL94: 7 | BN94: =IF(ISNUMBER(入力!D8),入力!D8,"") -> 2018-01-01 | BS94: 月 | BU94: =IF(ISNUMBER(入力!D9),入力!I8,"") -> 1.昇給 | CG94: 8 | CI94: =IF(ISNUMBER(入力!D24),入力!D24,"") -> 2018-01-01 | CN94: 月 | CP94: =IF(ISNUMBER(入力!D25),入力!D25,"") ->  | DI94: 円
DN96: =IF(ISNUMBER(入力!D19),2,"") ->  | DP96: =IF(ISNUMBER(入力!D19),"二以上勤務","") -> 
F99: 9 | I99: =IF(ISNUMBER(入力!D8),入力!I10,"") -> 2018-01-01 | M99: 月 | O99: 10 | R99: =IF(ISNUMBER(入力!D10),入力!D10,"") -> 31 | V99: 日 | X99: 11 | AA99: =IF(ISNUMBER(入力!D13),入力!D13,"") -> 1500000 | AQ99: 円 | AS99: 12 | AV99: =IF(ISNUMBER(入力!D26),入力!D26,"") ->  | BJ99: 円 | BL99: 13 | BO99: =IF(ISNUMBER(入力!D13),入力!G13,"") -> 1500000 | CE99: 円 | CG99: 14 | CJ99: =IF(ISNUMBER(入力!D13),入力!I14,"") -> 4500000 | CZ99: 円 | DN99: =IF(ISNUMBER(入力!D20),3,"") ->  | DP99: =IF(ISNUMBER(入力!D20),"短時間労働者(特定適用事業所","") -> 
DN102: 4 | DP102: 昇給・降給の理由
I104: =IF(ISNUMBER(入力!D5),入力!I11,"") -> 2018-02-01 | M104: 月 | R104: =IF(ISNUMBER(入力!D11),入力!D11,"") -> 31 | V104: 日 | AA104: =IF(ISNUMBER(入力!D14),入力!D14,"") -> 1500000 | AQ104: 円 | AV104: =IF(ISNUMBER(入力!D27),入力!D27,"") ->  | BJ104: 円 | BO104: =IF(ISNUMBER(入力!D14),入力!G14,"") -> 1500000 | CE104: 円 | CG104: 15 | CJ104: =IF(ISNUMBER(入力!D13),入力!I15,"") -> 1500000 | CZ104: 円
DP105: =IF(ISTEXT(入力!D16),入力!D16,"") -> 基本給増
DN108: =IF(ISNUMBER(入力!D21),5,"") ->  | DP108: =IF(ISNUMBER(入力!D21),"健康保険のみ月額変更","") -> 
I109: =IF(ISNUMBER(入力!D8),入力!I12,"") -> 2018-03-04 | M109: 月 | R109: =IF(ISNUMBER(入力!D12),入力!D12,"") -> 28 | V109: 日 | AA109: =IF(ISNUMBER(入力!D15),入力!D15,"") -> 1500000 | AQ109: 円 | AV109: =IF(ISNUMBER(入力!D28),入力!D28,"") ->  | BJ109: 円 | BO109: =IF(ISNUMBER(入力!D15),入力!G15,"") -> 1500000 | CE109: 円 | CG109: 16 | CJ109: =IF(ISNUMBER(入力!D25),入力!I17,"") ->  | CZ109: 円
DN111: =IF(ISNUMBER(入力!D22),6,"") ->  | DP111: =IF(ISNUMBER(入力!D22),"その他","") ->  | DU111: =IF(ISTEXT(入力!D23),入力!D23,"") -> 
A117: ２ | F117: 1 | I117: =IF(ISNUMBER(入力!D31),入力!G38,"") -> 5403 | U117: 2 | X117: =IF(ISTEXT(入力!D32),入力!D32,"") -> 大阪 花 | BP117: 3 | BR117: =IF(ISNUMBER(入力!D33),入力!D33,"") -> 1947-12-12 | CR117: 4 | CT117: =IF(ISNUMBER(入力!D36),入力!I34,"") -> 2018-03-06 | DK117: =IF(ISNUMBER(入力!D45),入力!D46,"") -> 987654321098
DK121: 18 | DN121: =IF(ISNUMBER(入力!D45),1,"") -> 1 | DP121: =IF(ISNUMBER(入力!D45),"70歳以上被用者月額変更","") -> 70歳以上被用者月額変更
F122: 5 | I122: 健 | L122: =IF(ISNUMBER(入力!D34),入力!G51,"") -> 98 | V122: 千円 | Z122: 年 | AC122: =IF(ISNUMBER(入力!D34),入力!G53,"") -> 98 | AO122: 千円 | AS122: 6 | AU122: =IF(ISNUMBER(入力!D35),入力!D35,"") -> 2017-09-01 | BL122: 7 | BN122: =IF(ISNUMBER(入力!D36),入力!D36,"") -> 2017-12-01 | BS122: 月 | BU122: =IF(ISNUMBER(入力!D37),入力!I36,"") -> 2.降給 | CG122: 8 | CI122: =IF(ISNUMBER(入力!D52),入力!D52,"") ->  | CN122: 月 | CP122: =IF(ISNUMBER(入力!D53),入力!D53,"") ->  | DI122: 円
DN124: =IF(ISNUMBER(入力!D47),2,"") ->  | DP124: =IF(ISNUMBER(入力!D47),"二以上勤務","") -> 
F127: 9 | I127: =IF(ISNUMBER(入力!D36),入力!I38,"") -> 2017-12-01 | M127: 月 | O127: 10 | R127: =IF(ISNUMBER(入力!D38),入力!D38,"") -> 30 | V127: 日 | X127: 11 | AA127: =IF(ISNUMBER(入力!D41),入力!D41,"") -> 50000 | AQ127: 円 | AS127: 12 | AV127: =IF(ISNUMBER(入力!D54),入力!D54,"") ->  | BJ127: 円 | BL127: 13 | BO127: =IF(ISNUMBER(入力!D41),入力!G41,"") -> 50000 | CE127: 円 | CG127: 14 | CJ127: =IF(ISNUMBER(入力!D41),入力!I42,"") -> 150000 | CZ127: 円 | DN127: =IF(ISNUMBER(入力!D48),3,"") ->  | DP127: =IF(ISNUMBER(入力!D48),"短時間労働者(特定適用事業所","") -> 
DN130: 4 | DP130: 昇給・降給の理由
I132: =IF(ISNUMBER(入力!D33),入力!I39,"") -> 2018-01-01 | M132: 月 | R132: =IF(ISNUMBER(入力!D39),入力!D39,"") -> 31 | V132: 日 | AA132: =IF(ISNUMBER(入力!D42),入力!D42,"") -> 50000 | AQ132: 円 | AV132: =IF(ISNUMBER(入力!D55),入力!D55,"") ->  | BJ132: 円 | BO132: =IF(ISNUMBER(入力!D42),入力!G42,"") -> 50000 | CE132: 円 | CG132: 15 | CJ132: =IF(ISNUMBER(入力!D41),入力!I43,"") -> 50000 | CZ132: 円
DP133: =IF(ISTEXT(入力!D44),入力!D44,"") -> 基本給減
DN136: =IF(ISNUMBER(入力!D49),5,"") ->  | DP136: =IF(ISNUMBER(入力!D49),"健康保険のみ月額変更","") -> 
I137: =IF(ISNUMBER(入力!D36),入力!I40,"") -> 2018-02-01 | M137: 月 | R137: =IF(ISNUMBER(入力!D40),入力!D40,"") -> 31 | V137: 日 | AA137: =IF(ISNUMBER(入力!D43),入力!D43,"") -> 50000 | AQ137: 円 | AV137: =IF(ISNUMBER(入力!D56),入力!D56,"") ->  | BJ137: 円 | BO137: =IF(ISNUMBER(入力!D43),入力!G43,"") -> 50000 | CE137: 円 | CG137: 16 | CJ137: =IF(ISNUMBER(入力!D53),入力!I45,"") ->  | CZ137: 円
DN139: =IF(ISNUMBER(入力!D50),6,"") ->  | DP139: =IF(ISNUMBER(入力!D50),"その他","") ->  | DU139: =IF(ISTEXT(入力!D51),入力!D51,"") -> 
A145: ３ | F145: 1 | I145: =IF(ISNUMBER(入力!D59),入力!G66,"") -> 5600 | U145: 2 | X145: =IF(ISTEXT(入力!D60),入力!D60,"") -> クリス ジョンソン | BP145: 3 | BR145: =IF(ISNUMBER(入力!D61),入力!D61,"") -> 1986-02-03 | CR145: 4 | CT145: =IF(ISNUMBER(入力!D64),入力!I62,"") -> 2018-05-07 | DK145: =IF(ISNUMBER(入力!D73),入力!D74,"") -> 
DK149: 18 | DN149: =IF(ISNUMBER(入力!D73),1,"") ->  | DP149: =IF(ISNUMBER(入力!D73),"70歳以上被用者月額変更","") -> 
F150: 5 | I150: 健 | L150: =IF(ISNUMBER(入力!D62),入力!G79,"") -> 620 | V150: 千円 | Z150: 年 | AC150: =IF(ISNUMBER(入力!D62),入力!G81,"") -> 620 | AO150: 千円 | AS150: 6 | AU150: =IF(ISNUMBER(入力!D63),入力!D63,"") -> 2017-12-01 | BL150: 7 | BN150: =IF(ISNUMBER(入力!D64),入力!D64,"") -> 2018-02-01 | BS150: 月 | BU150: =IF(ISNUMBER(入力!D65),入力!I64,"") -> 1.昇給 | CG150: 8 | CI150: =IF(ISNUMBER(入力!D80),入力!D80,"") ->  | CN150: 月 | CP150: =IF(ISNUMBER(入力!D81),入力!D81,"") ->  | DI150: 円
DN152: =IF(ISNUMBER(入力!D75),2,"") ->  | DP152: =IF(ISNUMBER(入力!D75),"二以上勤務","") -> 
F155: 9 | I155: =IF(ISNUMBER(入力!D64),入力!I66,"") -> 2018-02-01 | M155: 月 | O155: 10 | R155: =IF(ISNUMBER(入力!D66),入力!D66,"") -> 31 | V155: 日 | X155: 11 | AA155: =IF(ISNUMBER(入力!D69),入力!D69,"") -> 1500000 | AQ155: 円 | AS155: 12 | AV155: =IF(ISNUMBER(入力!D82),入力!D82,"") ->  | BJ155: 円 | BL155: 13 | BO155: =IF(ISNUMBER(入力!D69),入力!G69,"") -> 1500000 | CE155: 円 | CG155: 14 | CJ155: =IF(ISNUMBER(入力!D69),入力!I70,"") -> 4500000 | CZ155: 円 | DN155: =IF(ISNUMBER(入力!D76),3,"") ->  | DP155: =IF(ISNUMBER(入力!D76),"短時間労働者(特定適用事業所","") -> 
DN158: 4 | DP158: 昇給・降給の理由
I160: =IF(ISNUMBER(入力!D61),入力!I67,"") -> 2018-03-04 | M160: 月 | R160: =IF(ISNUMBER(入力!D67),入力!D67,"") -> 28 | V160: 日 | AA160: =IF(ISNUMBER(入力!D70),入力!D70,"") -> 1500000 | AQ160: 円 | AV160: =IF(ISNUMBER(入力!D83),入力!D83,"") ->  | BJ160: 円 | BO160: =IF(ISNUMBER(入力!D70),入力!G70,"") -> 1500000 | CE160: 円 | CG160: 15 | CJ160: =IF(ISNUMBER(入力!D69),入力!I71,"") -> 1500000 | CZ160: 円
DP161: =IF(ISTEXT(入力!D72),入力!D72,"") -> 基本給増
DN164: =IF(ISNUMBER(入力!D77),5,"") -> 5 | DP164: =IF(ISNUMBER(入力!D77),"健康保険のみ月額変更","") -> 健康保険のみ月額変更
I165: =IF(ISNUMBER(入力!D64),入力!I68,"") -> 2018-04-04 | M165: 月 | R165: =IF(ISNUMBER(入力!D68),入力!D68,"") -> 31 | V165: 日 | AA165: =IF(ISNUMBER(入力!D71),入力!D71,"") -> 1500000 | AQ165: 円 | AV165: =IF(ISNUMBER(入力!D84),入力!D84,"") ->  | BJ165: 円 | BO165: =IF(ISNUMBER(入力!D71),入力!G71,"") -> 1500000 | CE165: 円 | CG165: 16 | CJ165: =IF(ISNUMBER(入力!D81),入力!I73,"") ->  | CZ165: 円
DN167: =IF(ISNUMBER(入力!D78),6,"") ->  | DP167: =IF(ISNUMBER(入力!D78),"その他","") ->  | DU167: =IF(ISTEXT(入力!D79),入力!D79,"") -> 
A173: ４ | F173: 1 | I173: =IF(ISNUMBER(入力!D87),入力!G94,"") -> 5405 | U173: 2 | X173: =IF(ISTEXT(入力!D88),入力!D88,"") -> ブラッド エルドレッド | BP173: 3 | BR173: =IF(ISNUMBER(入力!D89),入力!D89,"") -> 1981-04-08 | CR173: 4 | CT173: =IF(ISNUMBER(入力!D92),入力!I90,"") -> 2018-05-07 | DK173: =IF(ISNUMBER(入力!D101),入力!D102,"") -> 
DK177: 18 | DN177: =IF(ISNUMBER(入力!D101),1,"") ->  | DP177: =IF(ISNUMBER(入力!D101),"70歳以上被用者月額変更","") -> 
F178: 5 | I178: 健 | L178: =IF(ISNUMBER(入力!D90),入力!G107,"") -> 300 | V178: 千円 | Z178: 年 | AC178: =IF(ISNUMBER(入力!D90),入力!G109,"") -> 300 | AO178: 千円 | AS178: 6 | AU178: =IF(ISNUMBER(入力!D91),入力!D91,"") -> 2018-01-01 | BL178: 7 | BN178: =IF(ISNUMBER(入力!D92),入力!D92,"") -> 2018-02-01 | BS178: 月 | BU178: =IF(ISNUMBER(入力!D93),入力!I92,"") -> 1.昇給 | CG178: 8 | CI178: =IF(ISNUMBER(入力!D108),入力!D108,"") -> 2018-02-01 | CN178: 月 | CP178: =IF(ISNUMBER(入力!D109),入力!D109,"") -> 20000 | DI178: 円
DN180: =IF(ISNUMBER(入力!D103),2,"") -> 2 | DP180: =IF(ISNUMBER(入力!D103),"二以上勤務","") -> 二以上勤務
F183: 9 | I183: =IF(ISNUMBER(入力!D92),入力!I94,"") -> 2018-02-01 | M183: 月 | O183: 10 | R183: =IF(ISNUMBER(入力!D94),入力!D94,"") -> 31 | V183: 日 | X183: 11 | AA183: =IF(ISNUMBER(入力!D97),入力!D97,"") -> 820000 | AQ183: 円 | AS183: 12 | AV183: =IF(ISNUMBER(入力!D110),入力!D110,"") ->  | BJ183: 円 | BL183: 13 | BO183: =IF(ISNUMBER(入力!D97),入力!G97,"") -> 820000 | CE183: 円 | CG183: 14 | CJ183: =IF(ISNUMBER(入力!D97),入力!I98,"") -> 2420000 | CZ183: 円 | DN183: =IF(ISNUMBER(入力!D104),3,"") ->  | DP183: =IF(ISNUMBER(入力!D104),"短時間労働者(特定適用事業所","") -> 
DN186: 4 | DP186: 昇給・降給の理由
I188: =IF(ISNUMBER(入力!D89),入力!I95,"") -> 2018-03-04 | M188: 月 | R188: =IF(ISNUMBER(入力!D95),入力!D95,"") -> 28 | V188: 日 | AA188: =IF(ISNUMBER(入力!D98),入力!D98,"") -> 800000 | AQ188: 円 | AV188: =IF(ISNUMBER(入力!D111),入力!D111,"") ->  | BJ188: 円 | BO188: =IF(ISNUMBER(入力!D98),入力!G98,"") -> 800000 | CE188: 円 | CG188: 15 | CJ188: =IF(ISNUMBER(入力!D97),入力!I99,"") -> 806666 | CZ188: 円
DP189: =IF(ISTEXT(入力!D100),入力!D100,"") -> 
DN192: =IF(ISNUMBER(入力!D105),5,"") ->  | DP192: =IF(ISNUMBER(入力!D105),"健康保険のみ月額変更","") -> 
I193: =IF(ISNUMBER(入力!D92),入力!I96,"") -> 2018-04-04 | M193: 月 | R193: =IF(ISNUMBER(入力!D96),入力!D96,"") -> 31 | V193: 日 | AA193: =IF(ISNUMBER(入力!D99),入力!D99,"") -> 800000 | AQ193: 円 | AV193: =IF(ISNUMBER(入力!D112),入力!D112,"") ->  | BJ193: 円 | BO193: =IF(ISNUMBER(入力!D99),入力!G99,"") -> 800000 | CE193: 円 | CG193: 16 | CJ193: =IF(ISNUMBER(入力!D109),入力!I101,"") -> 800000 | CZ193: 円
DN195: =IF(ISNUMBER(入力!D106),6,"") ->  | DP195: =IF(ISNUMBER(入力!D106),"その他","") ->  | DU195: =IF(ISTEXT(入力!D107),入力!D107,"") -> 
A201: ５ | F201: 1 | I201: =IF(ISNUMBER(入力!D115),入力!G122,"") -> 5800 | U201: 2 | X201: =IF(ISTEXT(入力!D116),入力!D116,"") -> ジェイ ジャクソン | BP201: 3 | BR201: =IF(ISNUMBER(入力!D117),入力!D117,"") -> 1993-07-26 | CR201: 4 | CT201: =IF(ISNUMBER(入力!D120),入力!I118,"") -> 2018-06-04 | DK201: =IF(ISNUMBER(入力!D129),入力!D130,"") -> 
DK205: 18 | DN205: =IF(ISNUMBER(入力!D129),1,"") ->  | DP205: =IF(ISNUMBER(入力!D129),"70歳以上被用者月額変更","") -> 
F206: 5 | I206: 健 | L206: =IF(ISNUMBER(入力!D118),入力!G135,"") -> 58 | V206: 千円 | Z206: 年 | AC206: =IF(ISNUMBER(入力!D118),入力!G137,"") -> 88 | AO206: 千円 | AS206: 6 | AU206: =IF(ISNUMBER(入力!D119),入力!D119,"") -> 2017-11-01 | BL206: 7 | BN206: =IF(ISNUMBER(入力!D120),入力!D120,"") -> 2018-03-01 | BS206: 月 | BU206: =IF(ISNUMBER(入力!D121),入力!I120,"") -> 1.昇給 | CG206: 8 | CI206: =IF(ISNUMBER(入力!D136),入力!D136,"") ->  | CN206: 月 | CP206: =IF(ISNUMBER(入力!D137),入力!D137,"") ->  | DI206: 円
DN208: =IF(ISNUMBER(入力!D131),2,"") ->  | DP208: =IF(ISNUMBER(入力!D131),"二以上勤務","") -> 
F211: 9 | I211: =IF(ISNUMBER(入力!D120),入力!I122,"") -> 2018-03-01 | M211: 月 | O211: 10 | R211: =IF(ISNUMBER(入力!D122),入力!D122,"") -> 28 | V211: 日 | X211: 11 | AA211: =IF(ISNUMBER(入力!D125),入力!D125,"") -> 2000000 | AQ211: 円 | AS211: 12 | AV211: =IF(ISNUMBER(入力!D138),入力!D138,"") -> 50000 | BJ211: 円 | BL211: 13 | BO211: =IF(ISNUMBER(入力!D125),入力!G125,"") -> 2050000 | CE211: 円 | CG211: 14 | CJ211: =IF(ISNUMBER(入力!D125),入力!I126,"") -> 6150000 | CZ211: 円 | DN211: =IF(ISNUMBER(入力!D132),3,"") -> 3 | DP211: =IF(ISNUMBER(入力!D132),"短時間労働者(特定適用事業所","") -> 短時間労働者(特定適用事業所
DN214: 4 | DP214: 昇給・降給の理由
I216: =IF(ISNUMBER(入力!D117),入力!I123,"") -> 2018-04-01 | M216: 月 | R216: =IF(ISNUMBER(入力!D123),入力!D123,"") -> 31 | V216: 日 | AA216: =IF(ISNUMBER(入力!D126),入力!D126,"") -> 2000000 | AQ216: 円 | AV216: =IF(ISNUMBER(入力!D139),入力!D139,"") -> 50000 | BJ216: 円 | BO216: =IF(ISNUMBER(入力!D126),入力!G126,"") -> 2050000 | CE216: 円 | CG216: 15 | CJ216: =IF(ISNUMBER(入力!D125),入力!I127,"") -> 2050000 | CZ216: 円
DP217: =IF(ISTEXT(入力!D128),入力!D128,"") -> 役員就任
DN220: =IF(ISNUMBER(入力!D133),5,"") ->  | DP220: =IF(ISNUMBER(入力!D133),"健康保険のみ月額変更","") -> 
I221: =IF(ISNUMBER(入力!D120),入力!I124,"") -> 2018-05-02 | M221: 月 | R221: =IF(ISNUMBER(入力!D124),入力!D124,"") -> 30 | V221: 日 | AA221: =IF(ISNUMBER(入力!D127),入力!D127,"") -> 2000000 | AQ221: 円 | AV221: =IF(ISNUMBER(入力!D140),入力!D140,"") -> 50000 | BJ221: 円 | BO221: =IF(ISNUMBER(入力!D127),入力!G127,"") -> 2050000 | CE221: 円 | CG221: 16 | CJ221: =IF(ISNUMBER(入力!D137),入力!I129,"") ->  | CZ221: 円
DN223: =IF(ISNUMBER(入力!D134),6,"") -> 6 | DP223: =IF(ISNUMBER(入力!D134),"その他","") -> その他 | DU223: =IF(ISTEXT(入力!D135),入力!D135,"") -> 短時間役員
